Department Family,Entity,Date of Payment,Expense Type,Expense Area,Supplier,Transaction Number,Amount in Sterling,Line Description
ECGD,ECGD,5 May 23,Entertainment (Home & O/seas),Compliance,Clarity Travel Ltd frmly Mawasem Ltd,         224,354.68,Business Travel 
ECGD,ECGD,5 May 23,External Meeting Rooms,SPoCC,Clarity Travel Ltd frmly Mawasem Ltd,         224,-22.64,Venue Hire 
ECGD,ECGD,5 May 23,External Meeting Rooms,SPoCC,Clarity Travel Ltd frmly Mawasem Ltd,         224,"3,129.17",Venue Hire 
ECGD,ECGD,5 May 23,Home Travel /Subsistence,Business Group _ Main,Clarity Travel Ltd frmly Mawasem Ltd,         224,-77.00,Business Travel 
ECGD,ECGD,5 May 23,Home Travel /Subsistence,Business Group _ Main,Clarity Travel Ltd frmly Mawasem Ltd,         224,-77.00,Business Travel 
ECGD,ECGD,5 May 23,Home Travel /Subsistence,Business Group _ Main,Clarity Travel Ltd frmly Mawasem Ltd,         224,-58.00,Business Travel 
ECGD,ECGD,5 May 23,Home Travel /Subsistence,Business Group _ Main,Clarity Travel Ltd frmly Mawasem Ltd,         224,1.00,Business Travel 
ECGD,ECGD,5 May 23,Home Travel /Subsistence,Business Group _ Main,Clarity Travel Ltd frmly Mawasem Ltd,         224,1.00,Business Travel 
ECGD,ECGD,5 May 23,Home Travel /Subsistence,Business Group _ Main,Clarity Travel Ltd frmly Mawasem Ltd,         224,1.00,Business Travel 
ECGD,ECGD,5 May 23,Home Travel /Subsistence,Business Group _ Main,Clarity Travel Ltd frmly Mawasem Ltd,         224,1.00,Business Travel 
ECGD,ECGD,5 May 23,Home Travel /Subsistence,Business Group _ Main,Clarity Travel Ltd frmly Mawasem Ltd,         224,1.00,Business Travel 
ECGD,ECGD,5 May 23,Home Travel /Subsistence,Business Group _ Main,Clarity Travel Ltd frmly Mawasem Ltd,         224,1.00,Business Travel 
ECGD,ECGD,5 May 23,Home Travel /Subsistence,Business Group _ Main,Clarity Travel Ltd frmly Mawasem Ltd,         224,1.00,Business Travel 
ECGD,ECGD,5 May 23,Home Travel /Subsistence,Business Group _ Main,Clarity Travel Ltd frmly Mawasem Ltd,         224,2.00,Business Travel 
ECGD,ECGD,5 May 23,Home Travel /Subsistence,Business Group _ Main,Clarity Travel Ltd frmly Mawasem Ltd,         224,2.00,Business Travel 
ECGD,ECGD,5 May 23,Home Travel /Subsistence,Business Group _ Main,Clarity Travel Ltd frmly Mawasem Ltd,         224,2.00,Business Travel 
ECGD,ECGD,5 May 23,Home Travel /Subsistence,Business Group _ Main,Clarity Travel Ltd frmly Mawasem Ltd,         224,2.00,Business Travel 
ECGD,ECGD,5 May 23,Home Travel /Subsistence,Business Group _ Main,Clarity Travel Ltd frmly Mawasem Ltd,         224,2.00,Business Travel 
ECGD,ECGD,5 May 23,Home Travel /Subsistence,Business Group _ Main,Clarity Travel Ltd frmly Mawasem Ltd,         224,2.00,Business Travel 
ECGD,ECGD,5 May 23,Home Travel /Subsistence,Business Group _ Main,Clarity Travel Ltd frmly Mawasem Ltd,         224,2.00,Business Travel 
ECGD,ECGD,5 May 23,Home Travel /Subsistence,Business Group _ Main,Clarity Travel Ltd frmly Mawasem Ltd,         224,2.00,Business Travel 
ECGD,ECGD,5 May 23,Home Travel /Subsistence,Business Group _ Main,Clarity Travel Ltd frmly Mawasem Ltd,         224,2.00,Business Travel 
ECGD,ECGD,5 May 23,Home Travel /Subsistence,Business Group _ Main,Clarity Travel Ltd frmly Mawasem Ltd,         224,3.50,Business Travel 
ECGD,ECGD,5 May 23,Home Travel /Subsistence,Business Group _ Main,Clarity Travel Ltd frmly Mawasem Ltd,         224,3.50,Business Travel 
ECGD,ECGD,5 May 23,Home Travel /Subsistence,Business Group _ Main,Clarity Travel Ltd frmly Mawasem Ltd,         224,25.00,Business Travel 
ECGD,ECGD,5 May 23,Home Travel /Subsistence,Business Group _ Main,Clarity Travel Ltd frmly Mawasem Ltd,         224,25.00,Business Travel 
ECGD,ECGD,5 May 23,Home Travel /Subsistence,Business Group _ Main,Clarity Travel Ltd frmly Mawasem Ltd,         224,35.00,Business Travel 
ECGD,ECGD,5 May 23,Home Travel /Subsistence,Business Group _ Main,Clarity Travel Ltd frmly Mawasem Ltd,         224,37.30,Business Travel 
ECGD,ECGD,5 May 23,Home Travel /Subsistence,Business Group _ Main,Clarity Travel Ltd frmly Mawasem Ltd,         224,42.70,Business Travel 
ECGD,ECGD,5 May 23,Home Travel /Subsistence,Business Group _ Main,Clarity Travel Ltd frmly Mawasem Ltd,         224,47.92,Business Travel 
ECGD,ECGD,5 May 23,Home Travel /Subsistence,Business Group _ Main,Clarity Travel Ltd frmly Mawasem Ltd,         224,55.30,Business Travel 
ECGD,ECGD,5 May 23,Home Travel /Subsistence,Business Group _ Main,Clarity Travel Ltd frmly Mawasem Ltd,         224,58.08,Business Travel 
ECGD,ECGD,5 May 23,Home Travel /Subsistence,Business Group _ Main,Clarity Travel Ltd frmly Mawasem Ltd,         224,58.95,Business Travel 
ECGD,ECGD,5 May 23,Home Travel /Subsistence,Business Group _ Main,Clarity Travel Ltd frmly Mawasem Ltd,         224,62.50,Business Travel 
ECGD,ECGD,5 May 23,Home Travel /Subsistence,Business Group _ Main,Clarity Travel Ltd frmly Mawasem Ltd,         224,63.33,Business Travel 
ECGD,ECGD,5 May 23,Home Travel /Subsistence,Business Group _ Main,Clarity Travel Ltd frmly Mawasem Ltd,         224,63.33,Business Travel 
ECGD,ECGD,5 May 23,Home Travel /Subsistence,Business Group _ Main,Clarity Travel Ltd frmly Mawasem Ltd,         224,65.80,Business Travel 
ECGD,ECGD,5 May 23,Home Travel /Subsistence,Business Group _ Main,Clarity Travel Ltd frmly Mawasem Ltd,         224,91.54,Business Travel 
ECGD,ECGD,5 May 23,Home Travel /Subsistence,Business Group _ Main,Clarity Travel Ltd frmly Mawasem Ltd,         224,91.54,Business Travel 
ECGD,ECGD,5 May 23,Home Travel /Subsistence,Business Group _ Main,Clarity Travel Ltd frmly Mawasem Ltd,         224,101.25,Business Travel 
ECGD,ECGD,5 May 23,Home Travel /Subsistence,Business Group _ Main,Clarity Travel Ltd frmly Mawasem Ltd,         224,111.67,Business Travel 
ECGD,ECGD,5 May 23,Home Travel /Subsistence,Business Group _ Main,Clarity Travel Ltd frmly Mawasem Ltd,         224,113.00,Business Travel 
ECGD,ECGD,5 May 23,Home Travel /Subsistence,Business Group _ Main,Clarity Travel Ltd frmly Mawasem Ltd,         224,117.50,Business Travel 
ECGD,ECGD,5 May 23,Home Travel /Subsistence,Business Group _ Main,Clarity Travel Ltd frmly Mawasem Ltd,         224,118.33,Business Travel 
ECGD,ECGD,5 May 23,Home Travel /Subsistence,Business Group _ Main,Clarity Travel Ltd frmly Mawasem Ltd,         224,132.00,Business Travel 
ECGD,ECGD,5 May 23,Home Travel /Subsistence,Business Group _ Main,Clarity Travel Ltd frmly Mawasem Ltd,         224,133.50,Business Travel 
ECGD,ECGD,5 May 23,Home Travel /Subsistence,Business Group _ Main,Clarity Travel Ltd frmly Mawasem Ltd,         224,133.50,Business Travel 
ECGD,ECGD,5 May 23,Home Travel /Subsistence,Business Group _ Main,Clarity Travel Ltd frmly Mawasem Ltd,         224,133.50,Business Travel 
ECGD,ECGD,5 May 23,Home Travel /Subsistence,Business Group _ Main,Clarity Travel Ltd frmly Mawasem Ltd,         224,133.50,Business Travel 
ECGD,ECGD,5 May 23,Home Travel /Subsistence,Business Group _ Main,Clarity Travel Ltd frmly Mawasem Ltd,         224,141.67,Business Travel 
ECGD,ECGD,5 May 23,Home Travel /Subsistence,Business Group _ Main,Clarity Travel Ltd frmly Mawasem Ltd,         224,141.67,Business Travel 
ECGD,ECGD,5 May 23,Home Travel /Subsistence,Business Group _ Main,Clarity Travel Ltd frmly Mawasem Ltd,         224,158.33,Business Travel 
ECGD,ECGD,5 May 23,Home Travel /Subsistence,Business Group _ Main,Clarity Travel Ltd frmly Mawasem Ltd,         224,167.50,Business Travel 
ECGD,ECGD,5 May 23,Home Travel /Subsistence,Business Group _ Main,Clarity Travel Ltd frmly Mawasem Ltd,         224,267.97,Business Travel 
ECGD,ECGD,5 May 23,Home Travel /Subsistence,FOD,Clarity Travel Ltd frmly Mawasem Ltd,         224,1.00,Business Travel 
ECGD,ECGD,5 May 23,Home Travel /Subsistence,FOD,Clarity Travel Ltd frmly Mawasem Ltd,         224,1.00,Business Travel 
ECGD,ECGD,5 May 23,Home Travel /Subsistence,FOD,Clarity Travel Ltd frmly Mawasem Ltd,         224,25.00,Business Travel 
ECGD,ECGD,5 May 23,Home Travel /Subsistence,FOD,Clarity Travel Ltd frmly Mawasem Ltd,         224,35.00,Business Travel 
ECGD,ECGD,5 May 23,Home Travel /Subsistence,HRD,Clarity Travel Ltd frmly Mawasem Ltd,         224,3.50,Business Travel 
ECGD,ECGD,5 May 23,Home Travel /Subsistence,HRD,Clarity Travel Ltd frmly Mawasem Ltd,         224,240.31,Business Travel 
ECGD,ECGD,5 May 23,Home Travel /Subsistence,LD,Clarity Travel Ltd frmly Mawasem Ltd,         224,2.00,Business Travel 
ECGD,ECGD,5 May 23,Home Travel /Subsistence,LD,Clarity Travel Ltd frmly Mawasem Ltd,         224,6.00,Business Travel 
ECGD,ECGD,5 May 23,Home Travel /Subsistence,LD,Clarity Travel Ltd frmly Mawasem Ltd,         224,23.30,Business Travel 
ECGD,ECGD,5 May 23,Home Travel /Subsistence,LD,Clarity Travel Ltd frmly Mawasem Ltd,         224,25.00,Business Travel 
ECGD,ECGD,5 May 23,Home Travel /Subsistence,OCCMC,Clarity Travel Ltd frmly Mawasem Ltd,         224,1.00,Business Travel 
ECGD,ECGD,5 May 23,Home Travel /Subsistence,OCCMC,Clarity Travel Ltd frmly Mawasem Ltd,         224,1.00,Business Travel 
ECGD,ECGD,5 May 23,Home Travel /Subsistence,OCCMC,Clarity Travel Ltd frmly Mawasem Ltd,         224,1.00,Business Travel 
ECGD,ECGD,5 May 23,Home Travel /Subsistence,OCCMC,Clarity Travel Ltd frmly Mawasem Ltd,         224,1.00,Business Travel 
ECGD,ECGD,5 May 23,Home Travel /Subsistence,OCCMC,Clarity Travel Ltd frmly Mawasem Ltd,         224,1.00,Business Travel 
ECGD,ECGD,5 May 23,Home Travel /Subsistence,OCCMC,Clarity Travel Ltd frmly Mawasem Ltd,         224,1.00,Business Travel 
ECGD,ECGD,5 May 23,Home Travel /Subsistence,OCCMC,Clarity Travel Ltd frmly Mawasem Ltd,         224,1.00,Business Travel 
ECGD,ECGD,5 May 23,Home Travel /Subsistence,OCCMC,Clarity Travel Ltd frmly Mawasem Ltd,         224,1.00,Business Travel 
ECGD,ECGD,5 May 23,Home Travel /Subsistence,OCCMC,Clarity Travel Ltd frmly Mawasem Ltd,         224,32.00,Business Travel 
ECGD,ECGD,5 May 23,Home Travel /Subsistence,OCCMC,Clarity Travel Ltd frmly Mawasem Ltd,         224,92.50,Business Travel 
ECGD,ECGD,5 May 23,Home Travel /Subsistence,OCCMC,Clarity Travel Ltd frmly Mawasem Ltd,         224,264.80,Business Travel 
ECGD,ECGD,5 May 23,Home Travel /Subsistence,OCCMC,Clarity Travel Ltd frmly Mawasem Ltd,         224,280.40,Business Travel 
ECGD,ECGD,5 May 23,Home Travel /Subsistence,OCCMC,Clarity Travel Ltd frmly Mawasem Ltd,         224,280.40,Business Travel 
ECGD,ECGD,5 May 23,Home Travel /Subsistence,OCCMC,Clarity Travel Ltd frmly Mawasem Ltd,         224,280.40,Business Travel 
ECGD,ECGD,5 May 23,Home Travel /Subsistence,OCCMC,Clarity Travel Ltd frmly Mawasem Ltd,         224,280.40,Business Travel 
ECGD,ECGD,5 May 23,Home Travel /Subsistence,OCCMC,Clarity Travel Ltd frmly Mawasem Ltd,         224,280.40,Business Travel 
ECGD,ECGD,5 May 23,Home Travel /Subsistence,Portfolio Management Division,Clarity Travel Ltd frmly Mawasem Ltd,         224,1.00,Business Travel 
ECGD,ECGD,5 May 23,Home Travel /Subsistence,Portfolio Management Division,Clarity Travel Ltd frmly Mawasem Ltd,         224,26.40,Business Travel 
ECGD,ECGD,5 May 23,Home Travel /Subsistence,Risk Approval Division,Clarity Travel Ltd frmly Mawasem Ltd,         224,1.00,Business Travel 
ECGD,ECGD,5 May 23,Home Travel /Subsistence,Risk Approval Division,Clarity Travel Ltd frmly Mawasem Ltd,         224,2.00,Business Travel 
ECGD,ECGD,5 May 23,Home Travel /Subsistence,Risk Approval Division,Clarity Travel Ltd frmly Mawasem Ltd,         224,2.00,Business Travel 
ECGD,ECGD,5 May 23,Home Travel /Subsistence,Risk Approval Division,Clarity Travel Ltd frmly Mawasem Ltd,         224,2.00,Business Travel 
ECGD,ECGD,5 May 23,Home Travel /Subsistence,Risk Approval Division,Clarity Travel Ltd frmly Mawasem Ltd,         224,2.00,Business Travel 
ECGD,ECGD,5 May 23,Home Travel /Subsistence,Risk Approval Division,Clarity Travel Ltd frmly Mawasem Ltd,         224,25.00,Business Travel 
ECGD,ECGD,5 May 23,Home Travel /Subsistence,Risk Approval Division,Clarity Travel Ltd frmly Mawasem Ltd,         224,40.00,Business Travel 
ECGD,ECGD,5 May 23,Home Travel /Subsistence,Risk Approval Division,Clarity Travel Ltd frmly Mawasem Ltd,         224,45.30,Business Travel 
ECGD,ECGD,5 May 23,Home Travel /Subsistence,Risk Approval Division,Clarity Travel Ltd frmly Mawasem Ltd,         224,82.15,Business Travel 
ECGD,ECGD,5 May 23,Home Travel /Subsistence,Risk Approval Division,Clarity Travel Ltd frmly Mawasem Ltd,         224,89.40,Business Travel 
ECGD,ECGD,5 May 23,Home Travel /Subsistence,SPoCC,Clarity Travel Ltd frmly Mawasem Ltd,         224,1.00,Business Travel 
ECGD,ECGD,5 May 23,Home Travel /Subsistence,SPoCC,Clarity Travel Ltd frmly Mawasem Ltd,         224,1.00,Business Travel 
ECGD,ECGD,5 May 23,Home Travel /Subsistence,SPoCC,Clarity Travel Ltd frmly Mawasem Ltd,         224,1.00,Business Travel 
ECGD,ECGD,5 May 23,Home Travel /Subsistence,SPoCC,Clarity Travel Ltd frmly Mawasem Ltd,         224,1.00,Business Travel 
ECGD,ECGD,5 May 23,Home Travel /Subsistence,SPoCC,Clarity Travel Ltd frmly Mawasem Ltd,         224,2.00,Business Travel 
ECGD,ECGD,5 May 23,Home Travel /Subsistence,SPoCC,Clarity Travel Ltd frmly Mawasem Ltd,         224,2.00,Business Travel 
ECGD,ECGD,5 May 23,Home Travel /Subsistence,SPoCC,Clarity Travel Ltd frmly Mawasem Ltd,         224,2.00,Business Travel 
ECGD,ECGD,5 May 23,Home Travel /Subsistence,SPoCC,Clarity Travel Ltd frmly Mawasem Ltd,         224,6.00,Business Travel 
ECGD,ECGD,5 May 23,Home Travel /Subsistence,SPoCC,Clarity Travel Ltd frmly Mawasem Ltd,         224,23.30,Business Travel 
ECGD,ECGD,5 May 23,Home Travel /Subsistence,SPoCC,Clarity Travel Ltd frmly Mawasem Ltd,         224,25.00,Business Travel 
ECGD,ECGD,5 May 23,Home Travel /Subsistence,SPoCC,Clarity Travel Ltd frmly Mawasem Ltd,         224,25.00,Business Travel 
ECGD,ECGD,5 May 23,Home Travel /Subsistence,SPoCC,Clarity Travel Ltd frmly Mawasem Ltd,         224,35.00,Business Travel 
ECGD,ECGD,5 May 23,Home Travel /Subsistence,SPoCC,Clarity Travel Ltd frmly Mawasem Ltd,         224,53.00,Business Travel 
ECGD,ECGD,5 May 23,Home Travel /Subsistence,SPoCC,Clarity Travel Ltd frmly Mawasem Ltd,         224,57.00,Business Travel 
ECGD,ECGD,5 May 23,Home Travel /Subsistence,SPoCC,Clarity Travel Ltd frmly Mawasem Ltd,         224,133.30,Business Travel 
ECGD,ECGD,5 May 23,Home Travel /Subsistence,SPoCC,Clarity Travel Ltd frmly Mawasem Ltd,         224,164.77,Business Travel 
ECGD,ECGD,5 May 23,Overseas Travel (Case Related),Business Group _ Main,Clarity Travel Ltd frmly Mawasem Ltd,         224,-59.25,Business Travel 
ECGD,ECGD,5 May 23,Overseas Travel (Case Related),Business Group _ Main,Clarity Travel Ltd frmly Mawasem Ltd,         224,-59.25,Business Travel 
ECGD,ECGD,5 May 23,Overseas Travel (Case Related),Business Group _ Main,Clarity Travel Ltd frmly Mawasem Ltd,         224,3.50,Business Travel 
ECGD,ECGD,5 May 23,Overseas Travel (Case Related),Business Group _ Main,Clarity Travel Ltd frmly Mawasem Ltd,         224,398.71,Business Travel 
ECGD,ECGD,5 May 23,Overseas Travel (Case Related),Portfolio Management Division,Clarity Travel Ltd frmly Mawasem Ltd,         224,2.00,Business Travel 
ECGD,ECGD,5 May 23,Overseas Travel (Case Related),Portfolio Management Division,Clarity Travel Ltd frmly Mawasem Ltd,         224,2.00,Business Travel 
ECGD,ECGD,5 May 23,Overseas Travel (Case Related),Portfolio Management Division,Clarity Travel Ltd frmly Mawasem Ltd,         224,2.00,Business Travel 
ECGD,ECGD,5 May 23,Overseas Travel (Case Related),Portfolio Management Division,Clarity Travel Ltd frmly Mawasem Ltd,         224,346.54,Business Travel 
ECGD,ECGD,5 May 23,Overseas Travel (Case Related),Portfolio Management Division,Clarity Travel Ltd frmly Mawasem Ltd,         224,346.54,Business Travel 
ECGD,ECGD,5 May 23,Overseas Travel (Case Related),Portfolio Management Division,Clarity Travel Ltd frmly Mawasem Ltd,         224,346.54,Business Travel 
ECGD,ECGD,5 May 23,Overseas Travel (Case Related),SPoCC,Clarity Travel Ltd frmly Mawasem Ltd,         224,3.50,Business Travel 
ECGD,ECGD,5 May 23,Overseas Travel (Case Related),SPoCC,Clarity Travel Ltd frmly Mawasem Ltd,         224,644.21,Business Travel 
ECGD,ECGD,5 May 23,Overseas Travel/Subsistence,Business Group _ Main,Clarity Travel Ltd frmly Mawasem Ltd,         224,-525.04,Business Travel 
ECGD,ECGD,5 May 23,Overseas Travel/Subsistence,Business Group _ Main,Clarity Travel Ltd frmly Mawasem Ltd,         224,-525.04,Business Travel 
ECGD,ECGD,5 May 23,Overseas Travel/Subsistence,Business Group _ Main,Clarity Travel Ltd frmly Mawasem Ltd,         224,2.00,Business Travel 
ECGD,ECGD,5 May 23,Overseas Travel/Subsistence,Business Group _ Main,Clarity Travel Ltd frmly Mawasem Ltd,         224,2.00,Business Travel 
ECGD,ECGD,5 May 23,Overseas Travel/Subsistence,Business Group _ Main,Clarity Travel Ltd frmly Mawasem Ltd,         224,2.00,Business Travel 
ECGD,ECGD,5 May 23,Overseas Travel/Subsistence,Business Group _ Main,Clarity Travel Ltd frmly Mawasem Ltd,         224,2.00,Business Travel 
ECGD,ECGD,5 May 23,Overseas Travel/Subsistence,Business Group _ Main,Clarity Travel Ltd frmly Mawasem Ltd,         224,2.00,Business Travel 
ECGD,ECGD,5 May 23,Overseas Travel/Subsistence,Business Group _ Main,Clarity Travel Ltd frmly Mawasem Ltd,         224,3.50,Business Travel 
ECGD,ECGD,5 May 23,Overseas Travel/Subsistence,Business Group _ Main,Clarity Travel Ltd frmly Mawasem Ltd,         224,3.50,Business Travel 
ECGD,ECGD,5 May 23,Overseas Travel/Subsistence,Business Group _ Main,Clarity Travel Ltd frmly Mawasem Ltd,         224,3.50,Business Travel 
ECGD,ECGD,5 May 23,Overseas Travel/Subsistence,Business Group _ Main,Clarity Travel Ltd frmly Mawasem Ltd,         224,3.50,Business Travel 
ECGD,ECGD,5 May 23,Overseas Travel/Subsistence,Business Group _ Main,Clarity Travel Ltd frmly Mawasem Ltd,         224,4.00,Business Travel 
ECGD,ECGD,5 May 23,Overseas Travel/Subsistence,Business Group _ Main,Clarity Travel Ltd frmly Mawasem Ltd,         224,5.50,Business Travel 
ECGD,ECGD,5 May 23,Overseas Travel/Subsistence,Business Group _ Main,Clarity Travel Ltd frmly Mawasem Ltd,         224,5.50,Business Travel 
ECGD,ECGD,5 May 23,Overseas Travel/Subsistence,Business Group _ Main,Clarity Travel Ltd frmly Mawasem Ltd,         224,5.50,Business Travel 
ECGD,ECGD,5 May 23,Overseas Travel/Subsistence,Business Group _ Main,Clarity Travel Ltd frmly Mawasem Ltd,         224,5.50,Business Travel 
ECGD,ECGD,5 May 23,Overseas Travel/Subsistence,Business Group _ Main,Clarity Travel Ltd frmly Mawasem Ltd,         224,7.00,Business Travel 
ECGD,ECGD,5 May 23,Overseas Travel/Subsistence,Business Group _ Main,Clarity Travel Ltd frmly Mawasem Ltd,         224,7.00,Business Travel 
ECGD,ECGD,5 May 23,Overseas Travel/Subsistence,Business Group _ Main,Clarity Travel Ltd frmly Mawasem Ltd,         224,128.10,Business Travel 
ECGD,ECGD,5 May 23,Overseas Travel/Subsistence,Business Group _ Main,Clarity Travel Ltd frmly Mawasem Ltd,         224,171.30,Business Travel 
ECGD,ECGD,5 May 23,Overseas Travel/Subsistence,Business Group _ Main,Clarity Travel Ltd frmly Mawasem Ltd,         224,171.60,Business Travel 
ECGD,ECGD,5 May 23,Overseas Travel/Subsistence,Business Group _ Main,Clarity Travel Ltd frmly Mawasem Ltd,         224,191.05,Business Travel 
ECGD,ECGD,5 May 23,Overseas Travel/Subsistence,Business Group _ Main,Clarity Travel Ltd frmly Mawasem Ltd,         224,196.33,Business Travel 
ECGD,ECGD,5 May 23,Overseas Travel/Subsistence,Business Group _ Main,Clarity Travel Ltd frmly Mawasem Ltd,         224,360.17,Business Travel 
ECGD,ECGD,5 May 23,Overseas Travel/Subsistence,Business Group _ Main,Clarity Travel Ltd frmly Mawasem Ltd,         224,369.54,Business Travel 
ECGD,ECGD,5 May 23,Overseas Travel/Subsistence,Business Group _ Main,Clarity Travel Ltd frmly Mawasem Ltd,         224,369.54,Business Travel 
ECGD,ECGD,5 May 23,Overseas Travel/Subsistence,Business Group _ Main,Clarity Travel Ltd frmly Mawasem Ltd,         224,388.04,Business Travel 
ECGD,ECGD,5 May 23,Overseas Travel/Subsistence,Business Group _ Main,Clarity Travel Ltd frmly Mawasem Ltd,         224,436.52,Business Travel 
ECGD,ECGD,5 May 23,Overseas Travel/Subsistence,Business Group _ Main,Clarity Travel Ltd frmly Mawasem Ltd,         224,483.83,Business Travel 
ECGD,ECGD,5 May 23,Overseas Travel/Subsistence,Business Group _ Main,Clarity Travel Ltd frmly Mawasem Ltd,         224,500.30,Business Travel 
ECGD,ECGD,5 May 23,Overseas Travel/Subsistence,Business Group _ Main,Clarity Travel Ltd frmly Mawasem Ltd,         224,526.44,Business Travel 
ECGD,ECGD,5 May 23,Overseas Travel/Subsistence,Business Group _ Main,Clarity Travel Ltd frmly Mawasem Ltd,         224,526.44,Business Travel 
ECGD,ECGD,5 May 23,Overseas Travel/Subsistence,Business Group _ Main,Clarity Travel Ltd frmly Mawasem Ltd,         224,526.44,Business Travel 
ECGD,ECGD,5 May 23,Overseas Travel/Subsistence,Business Group _ Main,Clarity Travel Ltd frmly Mawasem Ltd,         224,526.44,Business Travel 
ECGD,ECGD,5 May 23,Overseas Travel/Subsistence,Business Group _ Main,Clarity Travel Ltd frmly Mawasem Ltd,         224,"7,132.31",Business Travel 
ECGD,ECGD,5 May 23,Overseas Travel/Subsistence,Compliance,Clarity Travel Ltd frmly Mawasem Ltd,         224,3.50,Business Travel 
ECGD,ECGD,5 May 23,Overseas Travel/Subsistence,Compliance,Clarity Travel Ltd frmly Mawasem Ltd,         224,3.50,Business Travel 
ECGD,ECGD,5 May 23,Overseas Travel/Subsistence,Compliance,Clarity Travel Ltd frmly Mawasem Ltd,         224,3.50,Business Travel 
ECGD,ECGD,5 May 23,Overseas Travel/Subsistence,Compliance,Clarity Travel Ltd frmly Mawasem Ltd,         224,144.00,Business Travel 
ECGD,ECGD,5 May 23,Overseas Travel/Subsistence,Compliance,Clarity Travel Ltd frmly Mawasem Ltd,         224,241.42,Business Travel 
ECGD,ECGD,5 May 23,Overseas Travel/Subsistence,Compliance,Clarity Travel Ltd frmly Mawasem Ltd,         224,263.48,Business Travel 
ECGD,ECGD,5 May 23,Overseas Travel/Subsistence,LD,Clarity Travel Ltd frmly Mawasem Ltd,         224,2.00,Business Travel 
ECGD,ECGD,5 May 23,Overseas Travel/Subsistence,LD,Clarity Travel Ltd frmly Mawasem Ltd,         224,2.00,Business Travel 
ECGD,ECGD,5 May 23,Overseas Travel/Subsistence,LD,Clarity Travel Ltd frmly Mawasem Ltd,         224,7.00,Business Travel 
ECGD,ECGD,5 May 23,Overseas Travel/Subsistence,LD,Clarity Travel Ltd frmly Mawasem Ltd,         224,7.00,Business Travel 
ECGD,ECGD,5 May 23,Overseas Travel/Subsistence,LD,Clarity Travel Ltd frmly Mawasem Ltd,         224,7.00,Business Travel 
ECGD,ECGD,5 May 23,Overseas Travel/Subsistence,LD,Clarity Travel Ltd frmly Mawasem Ltd,         224,9.00,Business Travel 
ECGD,ECGD,5 May 23,Overseas Travel/Subsistence,LD,Clarity Travel Ltd frmly Mawasem Ltd,         224,159.00,Business Travel 
ECGD,ECGD,5 May 23,Overseas Travel/Subsistence,LD,Clarity Travel Ltd frmly Mawasem Ltd,         224,174.00,Business Travel 
ECGD,ECGD,5 May 23,Overseas Travel/Subsistence,LD,Clarity Travel Ltd frmly Mawasem Ltd,         224,194.00,Business Travel 
ECGD,ECGD,5 May 23,Overseas Travel/Subsistence,LD,Clarity Travel Ltd frmly Mawasem Ltd,         224,404.60,Business Travel 
ECGD,ECGD,5 May 23,Overseas Travel/Subsistence,LD,Clarity Travel Ltd frmly Mawasem Ltd,         224,404.60,Business Travel 
ECGD,ECGD,5 May 23,Overseas Travel/Subsistence,LD,Clarity Travel Ltd frmly Mawasem Ltd,         224,528.06,Business Travel 
ECGD,ECGD,5 May 23,Overseas Travel/Subsistence,OCCMC,Clarity Travel Ltd frmly Mawasem Ltd,         224,-645.90,Business Travel 
ECGD,ECGD,5 May 23,Overseas Travel/Subsistence,OCCMC,Clarity Travel Ltd frmly Mawasem Ltd,         224,3.50,Business Travel 
ECGD,ECGD,5 May 23,Overseas Travel/Subsistence,OCCMC,Clarity Travel Ltd frmly Mawasem Ltd,         224,3.50,Business Travel 
ECGD,ECGD,5 May 23,Overseas Travel/Subsistence,OCCMC,Clarity Travel Ltd frmly Mawasem Ltd,         224,3.50,Business Travel 
ECGD,ECGD,5 May 23,Overseas Travel/Subsistence,OCCMC,Clarity Travel Ltd frmly Mawasem Ltd,         224,7.00,Business Travel 
ECGD,ECGD,5 May 23,Overseas Travel/Subsistence,OCCMC,Clarity Travel Ltd frmly Mawasem Ltd,         224,7.00,Business Travel 
ECGD,ECGD,5 May 23,Overseas Travel/Subsistence,OCCMC,Clarity Travel Ltd frmly Mawasem Ltd,         224,7.00,Business Travel 
ECGD,ECGD,5 May 23,Overseas Travel/Subsistence,OCCMC,Clarity Travel Ltd frmly Mawasem Ltd,         224,7.00,Business Travel 
ECGD,ECGD,5 May 23,Overseas Travel/Subsistence,OCCMC,Clarity Travel Ltd frmly Mawasem Ltd,         224,7.00,Business Travel 
ECGD,ECGD,5 May 23,Overseas Travel/Subsistence,OCCMC,Clarity Travel Ltd frmly Mawasem Ltd,         224,7.00,Business Travel 
ECGD,ECGD,5 May 23,Overseas Travel/Subsistence,OCCMC,Clarity Travel Ltd frmly Mawasem Ltd,         224,14.00,Business Travel 
ECGD,ECGD,5 May 23,Overseas Travel/Subsistence,OCCMC,Clarity Travel Ltd frmly Mawasem Ltd,         224,101.57,Business Travel 
ECGD,ECGD,5 May 23,Overseas Travel/Subsistence,OCCMC,Clarity Travel Ltd frmly Mawasem Ltd,         224,101.57,Business Travel 
ECGD,ECGD,5 May 23,Overseas Travel/Subsistence,OCCMC,Clarity Travel Ltd frmly Mawasem Ltd,         224,179.30,Business Travel 
ECGD,ECGD,5 May 23,Overseas Travel/Subsistence,OCCMC,Clarity Travel Ltd frmly Mawasem Ltd,         224,179.70,Business Travel 
ECGD,ECGD,5 May 23,Overseas Travel/Subsistence,OCCMC,Clarity Travel Ltd frmly Mawasem Ltd,         224,264.06,Business Travel 
ECGD,ECGD,5 May 23,Overseas Travel/Subsistence,OCCMC,Clarity Travel Ltd frmly Mawasem Ltd,         224,264.06,Business Travel 
ECGD,ECGD,5 May 23,Overseas Travel/Subsistence,OCCMC,Clarity Travel Ltd frmly Mawasem Ltd,         224,277.40,Business Travel 
ECGD,ECGD,5 May 23,Overseas Travel/Subsistence,OCCMC,Clarity Travel Ltd frmly Mawasem Ltd,         224,485.70,Business Travel 
ECGD,ECGD,5 May 23,Overseas Travel/Subsistence,OCCMC,Clarity Travel Ltd frmly Mawasem Ltd,         224,485.70,Business Travel 
ECGD,ECGD,5 May 23,Overseas Travel/Subsistence,OCCMC,Clarity Travel Ltd frmly Mawasem Ltd,         224,782.50,Business Travel 
ECGD,ECGD,5 May 23,Overseas Travel/Subsistence,OCCMC,Clarity Travel Ltd frmly Mawasem Ltd,         224,"2,726.40",Business Travel 
ECGD,ECGD,5 May 23,Overseas Travel/Subsistence,OCCMC,Clarity Travel Ltd frmly Mawasem Ltd,         224,"2,726.40",Business Travel 
ECGD,ECGD,5 May 23,Overseas Travel/Subsistence,OCCMC,Clarity Travel Ltd frmly Mawasem Ltd,         224,"3,652.10",Business Travel 
ECGD,ECGD,5 May 23,Overseas Travel/Subsistence,OCCMC,Clarity Travel Ltd frmly Mawasem Ltd,         224,"5,220.98",Business Travel 
ECGD,ECGD,5 May 23,Overseas Travel/Subsistence,OCCMC,Clarity Travel Ltd frmly Mawasem Ltd,         224,"5,220.98",Business Travel 
ECGD,ECGD,5 May 23,Overseas Travel/Subsistence,OCCMC,Clarity Travel Ltd frmly Mawasem Ltd,         224,"7,132.21",Business Travel 
ECGD,ECGD,5 May 23,Overseas Travel/Subsistence,OCCMC,Clarity Travel Ltd frmly Mawasem Ltd,         224,"8,426.45",Business Travel 
ECGD,ECGD,5 May 23,Overseas Travel/Subsistence,OCCMC,Clarity Travel Ltd frmly Mawasem Ltd,         224,"8,426.45",Business Travel 
ECGD,ECGD,5 May 23,Overseas Travel/Subsistence,Portfolio Management Division,Clarity Travel Ltd frmly Mawasem Ltd,         224,3.50,Business Travel 
ECGD,ECGD,5 May 23,Overseas Travel/Subsistence,Portfolio Management Division,Clarity Travel Ltd frmly Mawasem Ltd,         224,3.50,Business Travel 
ECGD,ECGD,5 May 23,Overseas Travel/Subsistence,Portfolio Management Division,Clarity Travel Ltd frmly Mawasem Ltd,         224,3.50,Business Travel 
ECGD,ECGD,5 May 23,Overseas Travel/Subsistence,Portfolio Management Division,Clarity Travel Ltd frmly Mawasem Ltd,         224,134.00,Business Travel 
ECGD,ECGD,5 May 23,Overseas Travel/Subsistence,Portfolio Management Division,Clarity Travel Ltd frmly Mawasem Ltd,         224,134.00,Business Travel 
ECGD,ECGD,5 May 23,Overseas Travel/Subsistence,Portfolio Management Division,Clarity Travel Ltd frmly Mawasem Ltd,         224,134.00,Business Travel 
ECGD,ECGD,5 May 23,Overseas Travel/Subsistence,Risk Approval Division,Clarity Travel Ltd frmly Mawasem Ltd,         224,-415.23,Business Travel 
ECGD,ECGD,5 May 23,Overseas Travel/Subsistence,Risk Approval Division,Clarity Travel Ltd frmly Mawasem Ltd,         224,0.40,Business Travel 
ECGD,ECGD,5 May 23,Overseas Travel/Subsistence,Risk Approval Division,Clarity Travel Ltd frmly Mawasem Ltd,         224,7.00,Business Travel 
ECGD,ECGD,5 May 23,Overseas Travel/Subsistence,Risk Approval Division,Clarity Travel Ltd frmly Mawasem Ltd,         224,7.00,Business Travel 
ECGD,ECGD,5 May 23,Overseas Travel/Subsistence,Risk Approval Division,Clarity Travel Ltd frmly Mawasem Ltd,         224,200.00,Business Travel 
ECGD,ECGD,5 May 23,Overseas Travel/Subsistence,SPoCC,Clarity Travel Ltd frmly Mawasem Ltd,         224,2.00,Business Travel 
ECGD,ECGD,5 May 23,Overseas Travel/Subsistence,SPoCC,Clarity Travel Ltd frmly Mawasem Ltd,         224,2.00,Business Travel 
ECGD,ECGD,5 May 23,Overseas Travel/Subsistence,SPoCC,Clarity Travel Ltd frmly Mawasem Ltd,         224,2.00,Business Travel 
ECGD,ECGD,5 May 23,Overseas Travel/Subsistence,SPoCC,Clarity Travel Ltd frmly Mawasem Ltd,         224,2.00,Business Travel 
ECGD,ECGD,5 May 23,Overseas Travel/Subsistence,SPoCC,Clarity Travel Ltd frmly Mawasem Ltd,         224,3.50,Business Travel 
ECGD,ECGD,5 May 23,Overseas Travel/Subsistence,SPoCC,Clarity Travel Ltd frmly Mawasem Ltd,         224,3.50,Business Travel 
ECGD,ECGD,5 May 23,Overseas Travel/Subsistence,SPoCC,Clarity Travel Ltd frmly Mawasem Ltd,         224,3.50,Business Travel 
ECGD,ECGD,5 May 23,Overseas Travel/Subsistence,SPoCC,Clarity Travel Ltd frmly Mawasem Ltd,         224,7.00,Business Travel 
ECGD,ECGD,5 May 23,Overseas Travel/Subsistence,SPoCC,Clarity Travel Ltd frmly Mawasem Ltd,         224,7.00,Business Travel 
ECGD,ECGD,5 May 23,Overseas Travel/Subsistence,SPoCC,Clarity Travel Ltd frmly Mawasem Ltd,         224,10.50,Business Travel 
ECGD,ECGD,5 May 23,Overseas Travel/Subsistence,SPoCC,Clarity Travel Ltd frmly Mawasem Ltd,         224,147.53,Business Travel 
ECGD,ECGD,5 May 23,Overseas Travel/Subsistence,SPoCC,Clarity Travel Ltd frmly Mawasem Ltd,         224,153.42,Business Travel 
ECGD,ECGD,5 May 23,Overseas Travel/Subsistence,SPoCC,Clarity Travel Ltd frmly Mawasem Ltd,         224,153.42,Business Travel 
ECGD,ECGD,5 May 23,Overseas Travel/Subsistence,SPoCC,Clarity Travel Ltd frmly Mawasem Ltd,         224,153.42,Business Travel 
ECGD,ECGD,5 May 23,Overseas Travel/Subsistence,SPoCC,Clarity Travel Ltd frmly Mawasem Ltd,         224,219.00,Business Travel 
ECGD,ECGD,5 May 23,Overseas Travel/Subsistence,SPoCC,Clarity Travel Ltd frmly Mawasem Ltd,         224,274.00,Business Travel 
ECGD,ECGD,5 May 23,Overseas Travel/Subsistence,SPoCC,Clarity Travel Ltd frmly Mawasem Ltd,         224,314.00,Business Travel 
ECGD,ECGD,5 May 23,Overseas Travel/Subsistence,SPoCC,Clarity Travel Ltd frmly Mawasem Ltd,         224,326.77,Business Travel 
ECGD,ECGD,5 May 23,Overseas Travel/Subsistence,SPoCC,Clarity Travel Ltd frmly Mawasem Ltd,         224,555.52,Business Travel 
ECGD,ECGD,5 May 23,Overseas Travel/Subsistence,SPoCC,Clarity Travel Ltd frmly Mawasem Ltd,         224,689.80,Business Travel 
ECGD,ECGD,5 May 23,Overseas Travel/Subsistence,SPoCC,Clarity Travel Ltd frmly Mawasem Ltd,         224,689.80,Business Travel 
ECGD,ECGD,5 May 23,Overseas Travel/Subsistence,SPoCC,Clarity Travel Ltd frmly Mawasem Ltd,         224,782.50,Business Travel 
ECGD,ECGD,5 May 23,Overseas Travel/Subsistence,SPoCC,Clarity Travel Ltd frmly Mawasem Ltd,         224,"8,222.50",Business Travel 
ECGD,ECGD,5 May 23,Overseas Travel/Subsistence,Special Situations Division,Clarity Travel Ltd frmly Mawasem Ltd,         224,-117.00,Business Travel 
ECGD,ECGD,5 May 23,Overseas Travel/Subsistence,Special Situations Division,Clarity Travel Ltd frmly Mawasem Ltd,         224,2.00,Business Travel 
ECGD,ECGD,5 May 23,Overseas Travel/Subsistence,Special Situations Division,Clarity Travel Ltd frmly Mawasem Ltd,         224,2.00,Business Travel 
ECGD,ECGD,5 May 23,Overseas Travel/Subsistence,Special Situations Division,Clarity Travel Ltd frmly Mawasem Ltd,         224,5.50,Business Travel 
ECGD,ECGD,5 May 23,Overseas Travel/Subsistence,Special Situations Division,Clarity Travel Ltd frmly Mawasem Ltd,         224,7.00,Business Travel 
ECGD,ECGD,5 May 23,Overseas Travel/Subsistence,Special Situations Division,Clarity Travel Ltd frmly Mawasem Ltd,         224,7.00,Business Travel 
ECGD,ECGD,5 May 23,Overseas Travel/Subsistence,Special Situations Division,Clarity Travel Ltd frmly Mawasem Ltd,         224,7.00,Business Travel 
ECGD,ECGD,5 May 23,Overseas Travel/Subsistence,Special Situations Division,Clarity Travel Ltd frmly Mawasem Ltd,         224,9.00,Business Travel 
ECGD,ECGD,5 May 23,Overseas Travel/Subsistence,Special Situations Division,Clarity Travel Ltd frmly Mawasem Ltd,         224,9.00,Business Travel 
ECGD,ECGD,5 May 23,Overseas Travel/Subsistence,Special Situations Division,Clarity Travel Ltd frmly Mawasem Ltd,         224,9.00,Business Travel 
ECGD,ECGD,5 May 23,Overseas Travel/Subsistence,Special Situations Division,Clarity Travel Ltd frmly Mawasem Ltd,         224,126.00,Business Travel 
ECGD,ECGD,5 May 23,Overseas Travel/Subsistence,Special Situations Division,Clarity Travel Ltd frmly Mawasem Ltd,         224,191.91,Business Travel 
ECGD,ECGD,5 May 23,Overseas Travel/Subsistence,Special Situations Division,Clarity Travel Ltd frmly Mawasem Ltd,         224,194.00,Business Travel 
ECGD,ECGD,5 May 23,Overseas Travel/Subsistence,Special Situations Division,Clarity Travel Ltd frmly Mawasem Ltd,         224,252.78,Business Travel 
ECGD,ECGD,5 May 23,Overseas Travel/Subsistence,Special Situations Division,Clarity Travel Ltd frmly Mawasem Ltd,         224,404.40,Business Travel 
ECGD,ECGD,5 May 23,Overseas Travel/Subsistence,Special Situations Division,Clarity Travel Ltd frmly Mawasem Ltd,         224,619.66,Business Travel 
ECGD,ECGD,5 May 23,Overseas Travel/Subsistence,Special Situations Division,Clarity Travel Ltd frmly Mawasem Ltd,         224,633.64,Business Travel 
ECGD,ECGD,5 May 23,Overseas Travel/Subsistence,Special Situations Division,Clarity Travel Ltd frmly Mawasem Ltd,         224,657.18,Business Travel 
ECGD,ECGD,5 May 23,Overseas Travel/Subsistence,Special Situations Division,Clarity Travel Ltd frmly Mawasem Ltd,         224,657.18,Business Travel 
ECGD,ECGD,16 May 23,External Meeting Rooms,HRD,Clarity Travel Ltd frmly Mawasem Ltd,         225,427.34,Venue Hire 
ECGD,ECGD,16 May 23,External Meeting Rooms,HRD,Clarity Travel Ltd frmly Mawasem Ltd,         225,680.46,Venue Hire 
ECGD,ECGD,16 May 23,External Meeting Rooms,SPoCC,Clarity Travel Ltd frmly Mawasem Ltd,         225,-22.64,Venue Hire 
ECGD,ECGD,16 May 23,External Meeting Rooms,SPoCC,Clarity Travel Ltd frmly Mawasem Ltd,         225,2.00,Business Travel 
ECGD,ECGD,16 May 23,External Meeting Rooms,SPoCC,Clarity Travel Ltd frmly Mawasem Ltd,         225,135.77,Business Travel 
ECGD,ECGD,16 May 23,External Meeting Rooms,SPoCC,Clarity Travel Ltd frmly Mawasem Ltd,         225,345.12,Venue Hire 
ECGD,ECGD,16 May 23,Home Travel /Subsistence,Business Group _ Main,Clarity Travel Ltd frmly Mawasem Ltd,         225,-57.00,Business Travel 
ECGD,ECGD,16 May 23,Home Travel /Subsistence,Business Group _ Main,Clarity Travel Ltd frmly Mawasem Ltd,         225,-14.00,Business Travel 
ECGD,ECGD,16 May 23,Home Travel /Subsistence,Business Group _ Main,Clarity Travel Ltd frmly Mawasem Ltd,         225,-3.50,Business Travel 
ECGD,ECGD,16 May 23,Home Travel /Subsistence,Business Group _ Main,Clarity Travel Ltd frmly Mawasem Ltd,         225,1.00,Business Travel 
ECGD,ECGD,16 May 23,Home Travel /Subsistence,Business Group _ Main,Clarity Travel Ltd frmly Mawasem Ltd,         225,1.00,Business Travel 
ECGD,ECGD,16 May 23,Home Travel /Subsistence,Business Group _ Main,Clarity Travel Ltd frmly Mawasem Ltd,         225,1.00,Business Travel 
ECGD,ECGD,16 May 23,Home Travel /Subsistence,Business Group _ Main,Clarity Travel Ltd frmly Mawasem Ltd,         225,1.00,Business Travel 
ECGD,ECGD,16 May 23,Home Travel /Subsistence,Business Group _ Main,Clarity Travel Ltd frmly Mawasem Ltd,         225,1.00,Business Travel 
ECGD,ECGD,16 May 23,Home Travel /Subsistence,Business Group _ Main,Clarity Travel Ltd frmly Mawasem Ltd,         225,1.00,Business Travel 
ECGD,ECGD,16 May 23,Home Travel /Subsistence,Business Group _ Main,Clarity Travel Ltd frmly Mawasem Ltd,         225,3.50,Business Travel 
ECGD,ECGD,16 May 23,Home Travel /Subsistence,Business Group _ Main,Clarity Travel Ltd frmly Mawasem Ltd,         225,3.50,Business Travel 
ECGD,ECGD,16 May 23,Home Travel /Subsistence,Business Group _ Main,Clarity Travel Ltd frmly Mawasem Ltd,         225,3.50,Business Travel 
ECGD,ECGD,16 May 23,Home Travel /Subsistence,Business Group _ Main,Clarity Travel Ltd frmly Mawasem Ltd,         225,3.50,Business Travel 
ECGD,ECGD,16 May 23,Home Travel /Subsistence,Business Group _ Main,Clarity Travel Ltd frmly Mawasem Ltd,         225,23.50,Business Travel 
ECGD,ECGD,16 May 23,Home Travel /Subsistence,Business Group _ Main,Clarity Travel Ltd frmly Mawasem Ltd,         225,25.60,Business Travel 
ECGD,ECGD,16 May 23,Home Travel /Subsistence,Business Group _ Main,Clarity Travel Ltd frmly Mawasem Ltd,         225,57.00,Business Travel 
ECGD,ECGD,16 May 23,Home Travel /Subsistence,Business Group _ Main,Clarity Travel Ltd frmly Mawasem Ltd,         225,63.00,Business Travel 
ECGD,ECGD,16 May 23,Home Travel /Subsistence,Business Group _ Main,Clarity Travel Ltd frmly Mawasem Ltd,         225,75.20,Business Travel 
ECGD,ECGD,16 May 23,Home Travel /Subsistence,Business Group _ Main,Clarity Travel Ltd frmly Mawasem Ltd,         225,113.80,Business Travel 
ECGD,ECGD,16 May 23,Home Travel /Subsistence,Business Group _ Main,Clarity Travel Ltd frmly Mawasem Ltd,         225,115.83,Business Travel 
ECGD,ECGD,16 May 23,Home Travel /Subsistence,Business Group _ Main,Clarity Travel Ltd frmly Mawasem Ltd,         225,132.00,Business Travel 
ECGD,ECGD,16 May 23,Home Travel /Subsistence,Business Group _ Main,Clarity Travel Ltd frmly Mawasem Ltd,         225,335.08,Business Travel 
ECGD,ECGD,16 May 23,Home Travel /Subsistence,Business Group _ Main,Clarity Travel Ltd frmly Mawasem Ltd,         225,342.60,Business Travel 
ECGD,ECGD,16 May 23,Home Travel /Subsistence,Business Group _ Main,Clarity Travel Ltd frmly Mawasem Ltd,         225,364.00,Business Travel 
ECGD,ECGD,16 May 23,Home Travel /Subsistence,OCCMC,Clarity Travel Ltd frmly Mawasem Ltd,         225,7.00,Business Travel 
ECGD,ECGD,16 May 23,Home Travel /Subsistence,OCCMC,Clarity Travel Ltd frmly Mawasem Ltd,         225,148.98,Business Travel 
ECGD,ECGD,16 May 23,Home Travel /Subsistence,Portfolio Management Division,Clarity Travel Ltd frmly Mawasem Ltd,         225,1.00,Business Travel 
ECGD,ECGD,16 May 23,Home Travel /Subsistence,Portfolio Management Division,Clarity Travel Ltd frmly Mawasem Ltd,         225,28.55,Business Travel 
ECGD,ECGD,16 May 23,Home Travel /Subsistence,Portfolio Management Division,Clarity Travel Ltd frmly Mawasem Ltd,         225,40.07,Business Travel 
ECGD,ECGD,16 May 23,Home Travel /Subsistence,SPoCC,Clarity Travel Ltd frmly Mawasem Ltd,         225,1.00,Business Travel 
ECGD,ECGD,16 May 23,Home Travel /Subsistence,SPoCC,Clarity Travel Ltd frmly Mawasem Ltd,         225,1.00,Business Travel 
ECGD,ECGD,16 May 23,Home Travel /Subsistence,SPoCC,Clarity Travel Ltd frmly Mawasem Ltd,         225,1.00,Business Travel 
ECGD,ECGD,16 May 23,Home Travel /Subsistence,SPoCC,Clarity Travel Ltd frmly Mawasem Ltd,         225,1.00,Business Travel 
ECGD,ECGD,16 May 23,Home Travel /Subsistence,SPoCC,Clarity Travel Ltd frmly Mawasem Ltd,         225,1.00,Business Travel 
ECGD,ECGD,16 May 23,Home Travel /Subsistence,SPoCC,Clarity Travel Ltd frmly Mawasem Ltd,         225,24.00,Business Travel 
ECGD,ECGD,16 May 23,Home Travel /Subsistence,SPoCC,Clarity Travel Ltd frmly Mawasem Ltd,         225,27.00,Business Travel 
ECGD,ECGD,16 May 23,Home Travel /Subsistence,SPoCC,Clarity Travel Ltd frmly Mawasem Ltd,         225,62.50,Business Travel 
ECGD,ECGD,16 May 23,Home Travel /Subsistence,SPoCC,Clarity Travel Ltd frmly Mawasem Ltd,         225,146.67,Business Travel 
ECGD,ECGD,16 May 23,Home Travel /Subsistence,SPoCC,Clarity Travel Ltd frmly Mawasem Ltd,         225,174.40,Business Travel 
ECGD,ECGD,16 May 23,Overseas Travel (Case Related),Business Group _ Main,Clarity Travel Ltd frmly Mawasem Ltd,         225,2.00,Business Travel 
ECGD,ECGD,16 May 23,Overseas Travel (Case Related),Business Group _ Main,Clarity Travel Ltd frmly Mawasem Ltd,         225,455.84,Business Travel 
ECGD,ECGD,16 May 23,Overseas Travel (Case Related),OCCMC,Clarity Travel Ltd frmly Mawasem Ltd,         225,2.00,Business Travel 
ECGD,ECGD,16 May 23,Overseas Travel (Case Related),OCCMC,Clarity Travel Ltd frmly Mawasem Ltd,         225,2.00,Business Travel 
ECGD,ECGD,16 May 23,Overseas Travel (Case Related),OCCMC,Clarity Travel Ltd frmly Mawasem Ltd,         225,2.00,Business Travel 
ECGD,ECGD,16 May 23,Overseas Travel (Case Related),OCCMC,Clarity Travel Ltd frmly Mawasem Ltd,         225,2.00,Business Travel 
ECGD,ECGD,16 May 23,Overseas Travel (Case Related),OCCMC,Clarity Travel Ltd frmly Mawasem Ltd,         225,2.00,Business Travel 
ECGD,ECGD,16 May 23,Overseas Travel (Case Related),OCCMC,Clarity Travel Ltd frmly Mawasem Ltd,         225,100.72,Business Travel 
ECGD,ECGD,16 May 23,Overseas Travel (Case Related),OCCMC,Clarity Travel Ltd frmly Mawasem Ltd,         225,184.29,Business Travel 
ECGD,ECGD,16 May 23,Overseas Travel (Case Related),OCCMC,Clarity Travel Ltd frmly Mawasem Ltd,         225,253.47,Business Travel 
ECGD,ECGD,16 May 23,Overseas Travel (Case Related),OCCMC,Clarity Travel Ltd frmly Mawasem Ltd,         225,347.86,Business Travel 
ECGD,ECGD,16 May 23,Overseas Travel (Case Related),OCCMC,Clarity Travel Ltd frmly Mawasem Ltd,         225,452.76,Business Travel 
ECGD,ECGD,16 May 23,Overseas Travel (Case Related),Portfolio Management Division,Clarity Travel Ltd frmly Mawasem Ltd,         225,2.00,Business Travel 
ECGD,ECGD,16 May 23,Overseas Travel (Case Related),Portfolio Management Division,Clarity Travel Ltd frmly Mawasem Ltd,         225,219.76,Business Travel 
ECGD,ECGD,16 May 23,Overseas Travel (Case Related),Risk Approval Division,Clarity Travel Ltd frmly Mawasem Ltd,         225,"-2,785.64",Business Travel 
ECGD,ECGD,16 May 23,Overseas Travel (Case Related),Risk Approval Division,Clarity Travel Ltd frmly Mawasem Ltd,         225,"-2,785.64",Business Travel 
ECGD,ECGD,16 May 23,Overseas Travel (Case Related),Risk Approval Division,Clarity Travel Ltd frmly Mawasem Ltd,         225,"-1,752.80",Business Travel 
ECGD,ECGD,16 May 23,Overseas Travel (Case Related),Risk Approval Division,Clarity Travel Ltd frmly Mawasem Ltd,         225,"-1,752.80",Business Travel 
ECGD,ECGD,16 May 23,Overseas Travel (Case Related),Risk Approval Division,Clarity Travel Ltd frmly Mawasem Ltd,         225,-7.00,Business Travel 
ECGD,ECGD,16 May 23,Overseas Travel (Case Related),Risk Approval Division,Clarity Travel Ltd frmly Mawasem Ltd,         225,-7.00,Business Travel 
ECGD,ECGD,16 May 23,Overseas Travel (Case Related),Risk Approval Division,Clarity Travel Ltd frmly Mawasem Ltd,         225,-7.00,Business Travel 
ECGD,ECGD,16 May 23,Overseas Travel (Case Related),Risk Approval Division,Clarity Travel Ltd frmly Mawasem Ltd,         225,-7.00,Business Travel 
ECGD,ECGD,16 May 23,Overseas Travel (Case Related),Risk Approval Division,Clarity Travel Ltd frmly Mawasem Ltd,         225,2.00,Business Travel 
ECGD,ECGD,16 May 23,Overseas Travel (Case Related),Risk Approval Division,Clarity Travel Ltd frmly Mawasem Ltd,         225,719.12,Business Travel 
ECGD,ECGD,16 May 23,Overseas Travel (Case Related),SPoCC,Clarity Travel Ltd frmly Mawasem Ltd,         225,3.50,Business Travel 
ECGD,ECGD,16 May 23,Overseas Travel (Case Related),SPoCC,Clarity Travel Ltd frmly Mawasem Ltd,         225,7.00,Business Travel 
ECGD,ECGD,16 May 23,Overseas Travel (Case Related),SPoCC,Clarity Travel Ltd frmly Mawasem Ltd,         225,245.70,Business Travel 
ECGD,ECGD,16 May 23,Overseas Travel (Case Related),SPoCC,Clarity Travel Ltd frmly Mawasem Ltd,         225,569.19,Business Travel 
ECGD,ECGD,16 May 23,Overseas Travel (Case Related),Special Situations Division,Clarity Travel Ltd frmly Mawasem Ltd,         225,2.00,Business Travel 
ECGD,ECGD,16 May 23,Overseas Travel (Case Related),Special Situations Division,Clarity Travel Ltd frmly Mawasem Ltd,         225,2.00,Business Travel 
ECGD,ECGD,16 May 23,Overseas Travel (Case Related),Special Situations Division,Clarity Travel Ltd frmly Mawasem Ltd,         225,384.60,Business Travel 
ECGD,ECGD,16 May 23,Overseas Travel (Case Related),Special Situations Division,Clarity Travel Ltd frmly Mawasem Ltd,         225,384.60,Business Travel 
ECGD,ECGD,16 May 23,Overseas Travel/Subsistence,Business Group _ Main,Clarity Travel Ltd frmly Mawasem Ltd,         225,2.00,Business Travel 
ECGD,ECGD,16 May 23,Overseas Travel/Subsistence,Business Group _ Main,Clarity Travel Ltd frmly Mawasem Ltd,         225,2.00,Business Travel 
ECGD,ECGD,16 May 23,Overseas Travel/Subsistence,Business Group _ Main,Clarity Travel Ltd frmly Mawasem Ltd,         225,2.00,Business Travel 
ECGD,ECGD,16 May 23,Overseas Travel/Subsistence,Business Group _ Main,Clarity Travel Ltd frmly Mawasem Ltd,         225,2.00,Business Travel 
ECGD,ECGD,16 May 23,Overseas Travel/Subsistence,Business Group _ Main,Clarity Travel Ltd frmly Mawasem Ltd,         225,2.00,Business Travel 
ECGD,ECGD,16 May 23,Overseas Travel/Subsistence,Business Group _ Main,Clarity Travel Ltd frmly Mawasem Ltd,         225,3.50,Business Travel 
ECGD,ECGD,16 May 23,Overseas Travel/Subsistence,Business Group _ Main,Clarity Travel Ltd frmly Mawasem Ltd,         225,3.50,Business Travel 
ECGD,ECGD,16 May 23,Overseas Travel/Subsistence,Business Group _ Main,Clarity Travel Ltd frmly Mawasem Ltd,         225,5.50,Business Travel 
ECGD,ECGD,16 May 23,Overseas Travel/Subsistence,Business Group _ Main,Clarity Travel Ltd frmly Mawasem Ltd,         225,5.50,Business Travel 
ECGD,ECGD,16 May 23,Overseas Travel/Subsistence,Business Group _ Main,Clarity Travel Ltd frmly Mawasem Ltd,         225,7.00,Business Travel 
ECGD,ECGD,16 May 23,Overseas Travel/Subsistence,Business Group _ Main,Clarity Travel Ltd frmly Mawasem Ltd,         225,7.00,Business Travel 
ECGD,ECGD,16 May 23,Overseas Travel/Subsistence,Business Group _ Main,Clarity Travel Ltd frmly Mawasem Ltd,         225,9.00,Business Travel 
ECGD,ECGD,16 May 23,Overseas Travel/Subsistence,Business Group _ Main,Clarity Travel Ltd frmly Mawasem Ltd,         225,10.00,Business Travel 
ECGD,ECGD,16 May 23,Overseas Travel/Subsistence,Business Group _ Main,Clarity Travel Ltd frmly Mawasem Ltd,         225,71.80,Business Travel 
ECGD,ECGD,16 May 23,Overseas Travel/Subsistence,Business Group _ Main,Clarity Travel Ltd frmly Mawasem Ltd,         225,100.72,Business Travel 
ECGD,ECGD,16 May 23,Overseas Travel/Subsistence,Business Group _ Main,Clarity Travel Ltd frmly Mawasem Ltd,         225,185.83,Business Travel 
ECGD,ECGD,16 May 23,Overseas Travel/Subsistence,Business Group _ Main,Clarity Travel Ltd frmly Mawasem Ltd,         225,231.81,Business Travel 
ECGD,ECGD,16 May 23,Overseas Travel/Subsistence,Business Group _ Main,Clarity Travel Ltd frmly Mawasem Ltd,         225,236.74,Business Travel 
ECGD,ECGD,16 May 23,Overseas Travel/Subsistence,Business Group _ Main,Clarity Travel Ltd frmly Mawasem Ltd,         225,242.90,Business Travel 
ECGD,ECGD,16 May 23,Overseas Travel/Subsistence,Business Group _ Main,Clarity Travel Ltd frmly Mawasem Ltd,         225,253.73,Business Travel 
ECGD,ECGD,16 May 23,Overseas Travel/Subsistence,Business Group _ Main,Clarity Travel Ltd frmly Mawasem Ltd,         225,334.80,Business Travel 
ECGD,ECGD,16 May 23,Overseas Travel/Subsistence,Business Group _ Main,Clarity Travel Ltd frmly Mawasem Ltd,         225,510.87,Business Travel 
ECGD,ECGD,16 May 23,Overseas Travel/Subsistence,Business Group _ Main,Clarity Travel Ltd frmly Mawasem Ltd,         225,611.21,Business Travel 
ECGD,ECGD,16 May 23,Overseas Travel/Subsistence,Business Group _ Main,Clarity Travel Ltd frmly Mawasem Ltd,         225,724.19,Business Travel 
ECGD,ECGD,16 May 23,Overseas Travel/Subsistence,Business Group _ Main,Clarity Travel Ltd frmly Mawasem Ltd,         225,784.91,Business Travel 
ECGD,ECGD,16 May 23,Overseas Travel/Subsistence,Business Group _ Main,Clarity Travel Ltd frmly Mawasem Ltd,         225,"1,747.11",Business Travel 
ECGD,ECGD,16 May 23,Overseas Travel/Subsistence,Business Group _ Main,Clarity Travel Ltd frmly Mawasem Ltd,         225,"5,545.10",Business Travel 
ECGD,ECGD,16 May 23,Overseas Travel/Subsistence,Compliance,Clarity Travel Ltd frmly Mawasem Ltd,         225,7.00,Business Travel 
ECGD,ECGD,16 May 23,Overseas Travel/Subsistence,Compliance,Clarity Travel Ltd frmly Mawasem Ltd,         225,9.00,Business Travel 
ECGD,ECGD,16 May 23,Overseas Travel/Subsistence,Compliance,Clarity Travel Ltd frmly Mawasem Ltd,         225,9.00,Business Travel 
ECGD,ECGD,16 May 23,Overseas Travel/Subsistence,Compliance,Clarity Travel Ltd frmly Mawasem Ltd,         225,9.00,Business Travel 
ECGD,ECGD,16 May 23,Overseas Travel/Subsistence,Compliance,Clarity Travel Ltd frmly Mawasem Ltd,         225,9.00,Business Travel 
ECGD,ECGD,16 May 23,Overseas Travel/Subsistence,Compliance,Clarity Travel Ltd frmly Mawasem Ltd,         225,188.00,Business Travel 
ECGD,ECGD,16 May 23,Overseas Travel/Subsistence,Compliance,Clarity Travel Ltd frmly Mawasem Ltd,         225,399.47,Business Travel 
ECGD,ECGD,16 May 23,Overseas Travel/Subsistence,Compliance,Clarity Travel Ltd frmly Mawasem Ltd,         225,399.47,Business Travel 
ECGD,ECGD,16 May 23,Overseas Travel/Subsistence,Compliance,Clarity Travel Ltd frmly Mawasem Ltd,         225,399.47,Business Travel 
ECGD,ECGD,16 May 23,Overseas Travel/Subsistence,Compliance,Clarity Travel Ltd frmly Mawasem Ltd,         225,614.40,Business Travel 
ECGD,ECGD,16 May 23,Overseas Travel/Subsistence,HRD,Clarity Travel Ltd frmly Mawasem Ltd,         225,3.50,Business Travel 
ECGD,ECGD,16 May 23,Overseas Travel/Subsistence,HRD,Clarity Travel Ltd frmly Mawasem Ltd,         225,839.53,Business Travel 
ECGD,ECGD,16 May 23,Overseas Travel/Subsistence,OCCMC,Clarity Travel Ltd frmly Mawasem Ltd,         225,"-1,983.64",Business Travel 
ECGD,ECGD,16 May 23,Overseas Travel/Subsistence,OCCMC,Clarity Travel Ltd frmly Mawasem Ltd,         225,-398.61,Business Travel 
ECGD,ECGD,16 May 23,Overseas Travel/Subsistence,OCCMC,Clarity Travel Ltd frmly Mawasem Ltd,         225,2.00,Business Travel 
ECGD,ECGD,16 May 23,Overseas Travel/Subsistence,OCCMC,Clarity Travel Ltd frmly Mawasem Ltd,         225,3.50,Business Travel 
ECGD,ECGD,16 May 23,Overseas Travel/Subsistence,OCCMC,Clarity Travel Ltd frmly Mawasem Ltd,         225,7.00,Business Travel 
ECGD,ECGD,16 May 23,Overseas Travel/Subsistence,OCCMC,Clarity Travel Ltd frmly Mawasem Ltd,         225,7.00,Business Travel 
ECGD,ECGD,16 May 23,Overseas Travel/Subsistence,OCCMC,Clarity Travel Ltd frmly Mawasem Ltd,         225,7.00,Business Travel 
ECGD,ECGD,16 May 23,Overseas Travel/Subsistence,OCCMC,Clarity Travel Ltd frmly Mawasem Ltd,         225,7.00,Business Travel 
ECGD,ECGD,16 May 23,Overseas Travel/Subsistence,OCCMC,Clarity Travel Ltd frmly Mawasem Ltd,         225,7.00,Business Travel 
ECGD,ECGD,16 May 23,Overseas Travel/Subsistence,OCCMC,Clarity Travel Ltd frmly Mawasem Ltd,         225,7.00,Business Travel 
ECGD,ECGD,16 May 23,Overseas Travel/Subsistence,OCCMC,Clarity Travel Ltd frmly Mawasem Ltd,         225,10.50,Business Travel 
ECGD,ECGD,16 May 23,Overseas Travel/Subsistence,OCCMC,Clarity Travel Ltd frmly Mawasem Ltd,         225,14.00,Business Travel 
ECGD,ECGD,16 May 23,Overseas Travel/Subsistence,OCCMC,Clarity Travel Ltd frmly Mawasem Ltd,         225,125.20,Business Travel 
ECGD,ECGD,16 May 23,Overseas Travel/Subsistence,OCCMC,Clarity Travel Ltd frmly Mawasem Ltd,         225,185.69,Business Travel 
ECGD,ECGD,16 May 23,Overseas Travel/Subsistence,OCCMC,Clarity Travel Ltd frmly Mawasem Ltd,         225,185.69,Business Travel 
ECGD,ECGD,16 May 23,Overseas Travel/Subsistence,OCCMC,Clarity Travel Ltd frmly Mawasem Ltd,         225,234.96,Business Travel 
ECGD,ECGD,16 May 23,Overseas Travel/Subsistence,OCCMC,Clarity Travel Ltd frmly Mawasem Ltd,         225,274.30,Business Travel 
ECGD,ECGD,16 May 23,Overseas Travel/Subsistence,OCCMC,Clarity Travel Ltd frmly Mawasem Ltd,         225,343.42,Business Travel 
ECGD,ECGD,16 May 23,Overseas Travel/Subsistence,OCCMC,Clarity Travel Ltd frmly Mawasem Ltd,         225,672.87,Business Travel 
ECGD,ECGD,16 May 23,Overseas Travel/Subsistence,OCCMC,Clarity Travel Ltd frmly Mawasem Ltd,         225,692.87,Business Travel 
ECGD,ECGD,16 May 23,Overseas Travel/Subsistence,OCCMC,Clarity Travel Ltd frmly Mawasem Ltd,         225,"1,570.07",Business Travel 
ECGD,ECGD,16 May 23,Overseas Travel/Subsistence,OCCMC,Clarity Travel Ltd frmly Mawasem Ltd,         225,"4,149.01",Business Travel 
ECGD,ECGD,16 May 23,Overseas Travel/Subsistence,OCCMC,Clarity Travel Ltd frmly Mawasem Ltd,         225,"5,381.21",Business Travel 
ECGD,ECGD,16 May 23,Overseas Travel/Subsistence,Portfolio Management Division,Clarity Travel Ltd frmly Mawasem Ltd,         225,3.50,Business Travel 
ECGD,ECGD,16 May 23,Overseas Travel/Subsistence,Portfolio Management Division,Clarity Travel Ltd frmly Mawasem Ltd,         225,7.00,Business Travel 
ECGD,ECGD,16 May 23,Overseas Travel/Subsistence,Portfolio Management Division,Clarity Travel Ltd frmly Mawasem Ltd,         225,7.00,Business Travel 
ECGD,ECGD,16 May 23,Overseas Travel/Subsistence,Portfolio Management Division,Clarity Travel Ltd frmly Mawasem Ltd,         225,7.00,Business Travel 
ECGD,ECGD,16 May 23,Overseas Travel/Subsistence,Portfolio Management Division,Clarity Travel Ltd frmly Mawasem Ltd,         225,7.00,Business Travel 
ECGD,ECGD,16 May 23,Overseas Travel/Subsistence,Portfolio Management Division,Clarity Travel Ltd frmly Mawasem Ltd,         225,7.00,Business Travel 
ECGD,ECGD,16 May 23,Overseas Travel/Subsistence,Portfolio Management Division,Clarity Travel Ltd frmly Mawasem Ltd,         225,7.00,Business Travel 
ECGD,ECGD,16 May 23,Overseas Travel/Subsistence,Portfolio Management Division,Clarity Travel Ltd frmly Mawasem Ltd,         225,171.30,Business Travel 
ECGD,ECGD,16 May 23,Overseas Travel/Subsistence,Portfolio Management Division,Clarity Travel Ltd frmly Mawasem Ltd,         225,185.02,Business Travel 
ECGD,ECGD,16 May 23,Overseas Travel/Subsistence,Portfolio Management Division,Clarity Travel Ltd frmly Mawasem Ltd,         225,198.00,Business Travel 
ECGD,ECGD,16 May 23,Overseas Travel/Subsistence,Portfolio Management Division,Clarity Travel Ltd frmly Mawasem Ltd,         225,"3,947.61",Business Travel 
ECGD,ECGD,16 May 23,Overseas Travel/Subsistence,Portfolio Management Division,Clarity Travel Ltd frmly Mawasem Ltd,         225,"4,005.71",Business Travel 
ECGD,ECGD,16 May 23,Overseas Travel/Subsistence,Portfolio Management Division,Clarity Travel Ltd frmly Mawasem Ltd,         225,"4,708.91",Business Travel 
ECGD,ECGD,16 May 23,Overseas Travel/Subsistence,Portfolio Management Division,Clarity Travel Ltd frmly Mawasem Ltd,         225,"4,708.91",Business Travel 
ECGD,ECGD,16 May 23,Overseas Travel/Subsistence,Risk Approval Division,Clarity Travel Ltd frmly Mawasem Ltd,         225,"-2,430.14",Business Travel 
ECGD,ECGD,16 May 23,Overseas Travel/Subsistence,Risk Approval Division,Clarity Travel Ltd frmly Mawasem Ltd,         225,7.00,Business Travel 
ECGD,ECGD,16 May 23,Overseas Travel/Subsistence,Risk Approval Division,Clarity Travel Ltd frmly Mawasem Ltd,         225,9.00,Business Travel 
ECGD,ECGD,16 May 23,Overseas Travel/Subsistence,Risk Approval Division,Clarity Travel Ltd frmly Mawasem Ltd,         225,9.00,Business Travel 
ECGD,ECGD,16 May 23,Overseas Travel/Subsistence,Risk Approval Division,Clarity Travel Ltd frmly Mawasem Ltd,         225,"4,005.71",Business Travel 
ECGD,ECGD,16 May 23,Overseas Travel/Subsistence,Risk Approval Division,Clarity Travel Ltd frmly Mawasem Ltd,         225,"6,557.35",Business Travel 
ECGD,ECGD,16 May 23,Overseas Travel/Subsistence,Risk Approval Division,Clarity Travel Ltd frmly Mawasem Ltd,         225,"6,557.35",Business Travel 
ECGD,ECGD,16 May 23,Overseas Travel/Subsistence,SPoCC,Clarity Travel Ltd frmly Mawasem Ltd,         225,-354.16,Business Travel 
ECGD,ECGD,16 May 23,Overseas Travel/Subsistence,SPoCC,Clarity Travel Ltd frmly Mawasem Ltd,         225,-219.00,Business Travel 
ECGD,ECGD,16 May 23,Overseas Travel/Subsistence,SPoCC,Clarity Travel Ltd frmly Mawasem Ltd,         225,2.00,Business Travel 
ECGD,ECGD,16 May 23,Overseas Travel/Subsistence,SPoCC,Clarity Travel Ltd frmly Mawasem Ltd,         225,4.00,Business Travel 
ECGD,ECGD,16 May 23,Overseas Travel/Subsistence,SPoCC,Clarity Travel Ltd frmly Mawasem Ltd,         225,4.00,Business Travel 
ECGD,ECGD,16 May 23,Overseas Travel/Subsistence,SPoCC,Clarity Travel Ltd frmly Mawasem Ltd,         225,7.00,Business Travel 
ECGD,ECGD,16 May 23,Overseas Travel/Subsistence,SPoCC,Clarity Travel Ltd frmly Mawasem Ltd,         225,7.00,Business Travel 
ECGD,ECGD,16 May 23,Overseas Travel/Subsistence,SPoCC,Clarity Travel Ltd frmly Mawasem Ltd,         225,7.00,Business Travel 
ECGD,ECGD,16 May 23,Overseas Travel/Subsistence,SPoCC,Clarity Travel Ltd frmly Mawasem Ltd,         225,7.00,Business Travel 
ECGD,ECGD,16 May 23,Overseas Travel/Subsistence,SPoCC,Clarity Travel Ltd frmly Mawasem Ltd,         225,7.00,Business Travel 
ECGD,ECGD,16 May 23,Overseas Travel/Subsistence,SPoCC,Clarity Travel Ltd frmly Mawasem Ltd,         225,7.00,Business Travel 
ECGD,ECGD,16 May 23,Overseas Travel/Subsistence,SPoCC,Clarity Travel Ltd frmly Mawasem Ltd,         225,7.00,Business Travel 
ECGD,ECGD,16 May 23,Overseas Travel/Subsistence,SPoCC,Clarity Travel Ltd frmly Mawasem Ltd,         225,7.00,Business Travel 
ECGD,ECGD,16 May 23,Overseas Travel/Subsistence,SPoCC,Clarity Travel Ltd frmly Mawasem Ltd,         225,7.00,Business Travel 
ECGD,ECGD,16 May 23,Overseas Travel/Subsistence,SPoCC,Clarity Travel Ltd frmly Mawasem Ltd,         225,7.00,Business Travel 
ECGD,ECGD,16 May 23,Overseas Travel/Subsistence,SPoCC,Clarity Travel Ltd frmly Mawasem Ltd,         225,7.00,Business Travel 
ECGD,ECGD,16 May 23,Overseas Travel/Subsistence,SPoCC,Clarity Travel Ltd frmly Mawasem Ltd,         225,7.00,Business Travel 
ECGD,ECGD,16 May 23,Overseas Travel/Subsistence,SPoCC,Clarity Travel Ltd frmly Mawasem Ltd,         225,7.00,Business Travel 
ECGD,ECGD,16 May 23,Overseas Travel/Subsistence,SPoCC,Clarity Travel Ltd frmly Mawasem Ltd,         225,9.00,Business Travel 
ECGD,ECGD,16 May 23,Overseas Travel/Subsistence,SPoCC,Clarity Travel Ltd frmly Mawasem Ltd,         225,76.80,Business Travel 
ECGD,ECGD,16 May 23,Overseas Travel/Subsistence,SPoCC,Clarity Travel Ltd frmly Mawasem Ltd,         225,163.20,Business Travel 
ECGD,ECGD,16 May 23,Overseas Travel/Subsistence,SPoCC,Clarity Travel Ltd frmly Mawasem Ltd,         225,200.17,Business Travel 
ECGD,ECGD,16 May 23,Overseas Travel/Subsistence,SPoCC,Clarity Travel Ltd frmly Mawasem Ltd,         225,203.00,Business Travel 
ECGD,ECGD,16 May 23,Overseas Travel/Subsistence,SPoCC,Clarity Travel Ltd frmly Mawasem Ltd,         225,203.00,Business Travel 
ECGD,ECGD,16 May 23,Overseas Travel/Subsistence,SPoCC,Clarity Travel Ltd frmly Mawasem Ltd,         225,228.00,Business Travel 
ECGD,ECGD,16 May 23,Overseas Travel/Subsistence,SPoCC,Clarity Travel Ltd frmly Mawasem Ltd,         225,302.68,Business Travel 
ECGD,ECGD,16 May 23,Overseas Travel/Subsistence,SPoCC,Clarity Travel Ltd frmly Mawasem Ltd,         225,367.21,Business Travel 
ECGD,ECGD,16 May 23,Overseas Travel/Subsistence,SPoCC,Clarity Travel Ltd frmly Mawasem Ltd,         225,439.58,Business Travel 
ECGD,ECGD,16 May 23,Overseas Travel/Subsistence,SPoCC,Clarity Travel Ltd frmly Mawasem Ltd,         225,479.98,Business Travel 
ECGD,ECGD,16 May 23,Overseas Travel/Subsistence,SPoCC,Clarity Travel Ltd frmly Mawasem Ltd,         225,479.98,Business Travel 
ECGD,ECGD,16 May 23,Overseas Travel/Subsistence,SPoCC,Clarity Travel Ltd frmly Mawasem Ltd,         225,553.88,Business Travel 
ECGD,ECGD,16 May 23,Overseas Travel/Subsistence,SPoCC,Clarity Travel Ltd frmly Mawasem Ltd,         225,553.88,Business Travel 
ECGD,ECGD,16 May 23,Overseas Travel/Subsistence,SPoCC,Clarity Travel Ltd frmly Mawasem Ltd,         225,658.50,Business Travel 
ECGD,ECGD,16 May 23,Overseas Travel/Subsistence,SPoCC,Clarity Travel Ltd frmly Mawasem Ltd,         225,"2,352.47",Business Travel 
ECGD,ECGD,16 May 23,Overseas Travel/Subsistence,SPoCC,Clarity Travel Ltd frmly Mawasem Ltd,         225,"3,063.57",Business Travel 
ECGD,ECGD,16 May 23,Overseas Travel/Subsistence,SPoCC,Clarity Travel Ltd frmly Mawasem Ltd,         225,"4,148.91",Business Travel 
ECGD,ECGD,16 May 23,Overseas Travel/Subsistence,Special Situations Division,Clarity Travel Ltd frmly Mawasem Ltd,         225,7.00,Business Travel 
ECGD,ECGD,16 May 23,Overseas Travel/Subsistence,Special Situations Division,Clarity Travel Ltd frmly Mawasem Ltd,         225,7.00,Business Travel 
ECGD,ECGD,16 May 23,Overseas Travel/Subsistence,Special Situations Division,Clarity Travel Ltd frmly Mawasem Ltd,         225,7.00,Business Travel 
ECGD,ECGD,16 May 23,Overseas Travel/Subsistence,Special Situations Division,Clarity Travel Ltd frmly Mawasem Ltd,         225,264.62,Business Travel 
ECGD,ECGD,16 May 23,Overseas Travel/Subsistence,Special Situations Division,Clarity Travel Ltd frmly Mawasem Ltd,         225,349.76,Business Travel 
ECGD,ECGD,16 May 23,Overseas Travel/Subsistence,Special Situations Division,Clarity Travel Ltd frmly Mawasem Ltd,         225,985.67,Business Travel 
ECGD,ECGD,16 May 23,Home Travel /Subsistence,Business Group _ Main,Clarity Travel Ltd frmly Mawasem Ltd,         226,3.50,Business Travel 
ECGD,ECGD,16 May 23,Home Travel /Subsistence,Business Group _ Main,Clarity Travel Ltd frmly Mawasem Ltd,         226,3.50,Business Travel 
ECGD,ECGD,16 May 23,Home Travel /Subsistence,Business Group _ Main,Clarity Travel Ltd frmly Mawasem Ltd,         226,33.90,Business Travel 
ECGD,ECGD,16 May 23,Home Travel /Subsistence,Business Group _ Main,Clarity Travel Ltd frmly Mawasem Ltd,         226,33.90,Business Travel 
ECGD,ECGD,16 May 23,Home Travel /Subsistence,LD,Clarity Travel Ltd frmly Mawasem Ltd,         226,1.00,Business Travel 
ECGD,ECGD,16 May 23,Home Travel /Subsistence,LD,Clarity Travel Ltd frmly Mawasem Ltd,         226,1.00,Business Travel 
ECGD,ECGD,16 May 23,Home Travel /Subsistence,LD,Clarity Travel Ltd frmly Mawasem Ltd,         226,28.10,Business Travel 
ECGD,ECGD,16 May 23,Home Travel /Subsistence,LD,Clarity Travel Ltd frmly Mawasem Ltd,         226,44.00,Business Travel 
ECGD,ECGD,16 May 23,Home Travel /Subsistence,OCCMC,Clarity Travel Ltd frmly Mawasem Ltd,         226,1.00,Business Travel 
ECGD,ECGD,16 May 23,Home Travel /Subsistence,OCCMC,Clarity Travel Ltd frmly Mawasem Ltd,         226,264.80,Business Travel 
ECGD,ECGD,16 May 23,Home Travel /Subsistence,Risk Approval Division,Clarity Travel Ltd frmly Mawasem Ltd,         226,7.00,Business Travel 
ECGD,ECGD,16 May 23,Home Travel /Subsistence,Risk Approval Division,Clarity Travel Ltd frmly Mawasem Ltd,         226,7.00,Business Travel 
ECGD,ECGD,16 May 23,Home Travel /Subsistence,Risk Approval Division,Clarity Travel Ltd frmly Mawasem Ltd,         226,52.99,Business Travel 
ECGD,ECGD,16 May 23,Home Travel /Subsistence,Risk Approval Division,Clarity Travel Ltd frmly Mawasem Ltd,         226,78.99,Business Travel 
ECGD,ECGD,16 May 23,Home Travel /Subsistence,SPoCC,Clarity Travel Ltd frmly Mawasem Ltd,         226,117.50,Business Travel 
ECGD,ECGD,16 May 23,Overseas Travel (Case Related),Business Group _ Main,Clarity Travel Ltd frmly Mawasem Ltd,         226,2.00,Business Travel 
ECGD,ECGD,16 May 23,Overseas Travel (Case Related),Business Group _ Main,Clarity Travel Ltd frmly Mawasem Ltd,         226,489.52,Business Travel 
ECGD,ECGD,16 May 23,Overseas Travel (Case Related),OCCMC,Clarity Travel Ltd frmly Mawasem Ltd,         226,2.00,Business Travel 
ECGD,ECGD,16 May 23,Overseas Travel (Case Related),OCCMC,Clarity Travel Ltd frmly Mawasem Ltd,         226,494.80,Business Travel 
ECGD,ECGD,16 May 23,Overseas Travel/Subsistence,Business Group _ Main,Clarity Travel Ltd frmly Mawasem Ltd,         226,2.00,Business Travel 
ECGD,ECGD,16 May 23,Overseas Travel/Subsistence,Business Group _ Main,Clarity Travel Ltd frmly Mawasem Ltd,         226,7.00,Business Travel 
ECGD,ECGD,16 May 23,Overseas Travel/Subsistence,Business Group _ Main,Clarity Travel Ltd frmly Mawasem Ltd,         226,7.00,Business Travel 
ECGD,ECGD,16 May 23,Overseas Travel/Subsistence,Business Group _ Main,Clarity Travel Ltd frmly Mawasem Ltd,         226,7.00,Business Travel 
ECGD,ECGD,16 May 23,Overseas Travel/Subsistence,Business Group _ Main,Clarity Travel Ltd frmly Mawasem Ltd,         226,7.00,Business Travel 
ECGD,ECGD,16 May 23,Overseas Travel/Subsistence,Business Group _ Main,Clarity Travel Ltd frmly Mawasem Ltd,         226,267.00,Business Travel 
ECGD,ECGD,16 May 23,Overseas Travel/Subsistence,Business Group _ Main,Clarity Travel Ltd frmly Mawasem Ltd,         226,354.15,Business Travel 
ECGD,ECGD,16 May 23,Overseas Travel/Subsistence,Business Group _ Main,Clarity Travel Ltd frmly Mawasem Ltd,         226,756.52,Business Travel 
ECGD,ECGD,16 May 23,Overseas Travel/Subsistence,Business Group _ Main,Clarity Travel Ltd frmly Mawasem Ltd,         226,"2,978.48",Business Travel 
ECGD,ECGD,16 May 23,Overseas Travel/Subsistence,Business Group _ Main,Clarity Travel Ltd frmly Mawasem Ltd,         226,"2,978.48",Business Travel 
ECGD,ECGD,16 May 23,Overseas Travel/Subsistence,OCCMC,Clarity Travel Ltd frmly Mawasem Ltd,         226,0.00,Business Travel 
ECGD,ECGD,16 May 23,Overseas Travel/Subsistence,OCCMC,Clarity Travel Ltd frmly Mawasem Ltd,         226,0.00,Business Travel 
ECGD,ECGD,16 May 23,Overseas Travel/Subsistence,OCCMC,Clarity Travel Ltd frmly Mawasem Ltd,         226,0.00,Business Travel 
ECGD,ECGD,16 May 23,Overseas Travel/Subsistence,OCCMC,Clarity Travel Ltd frmly Mawasem Ltd,         226,0.00,Business Travel 
ECGD,ECGD,16 May 23,Overseas Travel/Subsistence,OCCMC,Clarity Travel Ltd frmly Mawasem Ltd,         226,3.50,Business Travel 
ECGD,ECGD,16 May 23,Overseas Travel/Subsistence,OCCMC,Clarity Travel Ltd frmly Mawasem Ltd,         226,3.50,Business Travel 
ECGD,ECGD,16 May 23,Overseas Travel/Subsistence,OCCMC,Clarity Travel Ltd frmly Mawasem Ltd,         226,3.50,Business Travel 
ECGD,ECGD,16 May 23,Overseas Travel/Subsistence,OCCMC,Clarity Travel Ltd frmly Mawasem Ltd,         226,7.00,Business Travel 
ECGD,ECGD,16 May 23,Overseas Travel/Subsistence,OCCMC,Clarity Travel Ltd frmly Mawasem Ltd,         226,7.00,Business Travel 
ECGD,ECGD,16 May 23,Overseas Travel/Subsistence,OCCMC,Clarity Travel Ltd frmly Mawasem Ltd,         226,7.00,Business Travel 
ECGD,ECGD,16 May 23,Overseas Travel/Subsistence,OCCMC,Clarity Travel Ltd frmly Mawasem Ltd,         226,7.00,Business Travel 
ECGD,ECGD,16 May 23,Overseas Travel/Subsistence,OCCMC,Clarity Travel Ltd frmly Mawasem Ltd,         226,7.00,Business Travel 
ECGD,ECGD,16 May 23,Overseas Travel/Subsistence,OCCMC,Clarity Travel Ltd frmly Mawasem Ltd,         226,9.00,Business Travel 
ECGD,ECGD,16 May 23,Overseas Travel/Subsistence,OCCMC,Clarity Travel Ltd frmly Mawasem Ltd,         226,9.00,Business Travel 
ECGD,ECGD,16 May 23,Overseas Travel/Subsistence,OCCMC,Clarity Travel Ltd frmly Mawasem Ltd,         226,179.40,Business Travel 
ECGD,ECGD,16 May 23,Overseas Travel/Subsistence,OCCMC,Clarity Travel Ltd frmly Mawasem Ltd,         226,179.40,Business Travel 
ECGD,ECGD,16 May 23,Overseas Travel/Subsistence,OCCMC,Clarity Travel Ltd frmly Mawasem Ltd,         226,265.48,Business Travel 
ECGD,ECGD,16 May 23,Overseas Travel/Subsistence,OCCMC,Clarity Travel Ltd frmly Mawasem Ltd,         226,471.97,Business Travel 
ECGD,ECGD,16 May 23,Overseas Travel/Subsistence,OCCMC,Clarity Travel Ltd frmly Mawasem Ltd,         226,471.97,Business Travel 
ECGD,ECGD,16 May 23,Overseas Travel/Subsistence,OCCMC,Clarity Travel Ltd frmly Mawasem Ltd,         226,"2,369.21",Business Travel 
ECGD,ECGD,16 May 23,Overseas Travel/Subsistence,OCCMC,Clarity Travel Ltd frmly Mawasem Ltd,         226,"3,191.40",Business Travel 
ECGD,ECGD,16 May 23,Overseas Travel/Subsistence,OCCMC,Clarity Travel Ltd frmly Mawasem Ltd,         226,"3,191.40",Business Travel 
ECGD,ECGD,16 May 23,Overseas Travel/Subsistence,OCCMC,Clarity Travel Ltd frmly Mawasem Ltd,         226,"3,364.21",Business Travel 
ECGD,ECGD,16 May 23,Overseas Travel/Subsistence,OCCMC,Clarity Travel Ltd frmly Mawasem Ltd,         226,"4,906.31",Business Travel 
ECGD,ECGD,16 May 23,Overseas Travel/Subsistence,Risk Approval Division,Clarity Travel Ltd frmly Mawasem Ltd,         226,7.00,Business Travel 
ECGD,ECGD,16 May 23,Overseas Travel/Subsistence,Risk Approval Division,Clarity Travel Ltd frmly Mawasem Ltd,         226,7.00,Business Travel 
ECGD,ECGD,16 May 23,Overseas Travel/Subsistence,Risk Approval Division,Clarity Travel Ltd frmly Mawasem Ltd,         226,"1,505.17",Business Travel 
ECGD,ECGD,16 May 23,Overseas Travel/Subsistence,Risk Approval Division,Clarity Travel Ltd frmly Mawasem Ltd,         226,"1,515.17",Business Travel 
ECGD,ECGD,16 May 23,Overseas Travel/Subsistence,SPoCC,Clarity Travel Ltd frmly Mawasem Ltd,         226,7.00,Business Travel 
ECGD,ECGD,16 May 23,Overseas Travel/Subsistence,SPoCC,Clarity Travel Ltd frmly Mawasem Ltd,         226,7.00,Business Travel 
ECGD,ECGD,16 May 23,Overseas Travel/Subsistence,SPoCC,Clarity Travel Ltd frmly Mawasem Ltd,         226,"4,733.31",Business Travel 
ECGD,ECGD,16 May 23,Overseas Travel/Subsistence,SPoCC,Clarity Travel Ltd frmly Mawasem Ltd,         226,"4,733.31",Business Travel 
ECGD,ECGD,5 May 23,Non Legal Recoverable,SSD,Aergo Captial Limited USD,        1129,"25,164.22",Technical Services (Recoverable)
ECGD,ECGD,5 May 23,Non Legal Recoverable,SSD,Aergo Captial Limited USD,        1129,"25,164.22",Technical Services (Recoverable)
ECGD,ECGD,5 May 23,Non Legal Recoverable,SSD,Aergo Captial Limited USD,        1130,"25,164.22",Technical Services (Recoverable)
ECGD,ECGD,5 May 23,Non Legal Recoverable,SSD,Aergo Captial Limited USD,        1130,"25,164.22",Technical Services (Recoverable)
ECGD,ECGD,9 May 23,Non Legal Recoverable,SSD,Aergo Captial Limited USD,        1131,"12,265.22",Technical Services (Recoverable)
ECGD,ECGD,9 May 23,Non Legal Recoverable,SSD,Aergo Captial Limited USD,        1131,"12,868.17",Technical Services (Recoverable)
ECGD,ECGD,9 May 23,Non Legal Recoverable,SSD,Aergo Captial Limited USD,        1131,"12,970.45",Technical Services (Recoverable)
ECGD,ECGD,9 May 23,Non Legal Recoverable,SSD,Aergo Captial Limited USD,        1131,"19,754.36",Technical Services (Recoverable)
ECGD,ECGD,9 May 23,Non Legal Recoverable,SSD,Aergo Captial Limited USD,        1131,"-57,858.20",Technical Services (Recoverable)
ECGD,ECGD,9 May 23,Non Legal Recoverable,SSD,Aergo Captial Limited USD,        1132,"2,412.06",Technical Services (Recoverable)
ECGD,ECGD,9 May 23,Non Legal Recoverable,SSD,Aergo Captial Limited USD,        1132,"5,025.13",Technical Services (Recoverable)
ECGD,ECGD,9 May 23,Non Legal Recoverable,SSD,Aergo Captial Limited USD,        1132,"18,974.87",Technical Services (Recoverable)
ECGD,ECGD,9 May 23,Non Legal Recoverable,SSD,Aergo Captial Limited USD,        1132,"-26,412.06",Technical Services (Recoverable)
ECGD,ECGD,9 May 23,Non Legal Recoverable,SSD,Rolls-Royce Leasing Limited,        1133,"1,026,662.52",Technical Services (Recoverable)
ECGD,ECGD,9 May 23,Non Legal Recoverable,SSD,Rolls-Royce Leasing Limited,        1134,"463,707.64",Technical Services (Recoverable)
ECGD,ECGD,9 May 23,Non Legal Recoverable,SSD,Aergo Captial Limited USD,        1135,"81,600.80",Technical Services (Recoverable)
ECGD,ECGD,9 May 23,Non Legal Recoverable,SSD,Aergo Captial Limited USD,        1135,"-81,600.80",Technical Services (Recoverable)
ECGD,ECGD,9 May 23,Non Legal Recoverable,SSD,Aergo Captial Limited USD,        1136,"144,603.02",Technical Services (Recoverable)
ECGD,ECGD,10 May 23,Non Legal Recoverable,SSD,Aergo Captial Limited USD,        1137,"53,970.54",Technical Services (Recoverable)
ECGD,ECGD,10 May 23,Non Legal Recoverable,SSD,Aergo Captial Limited USD,        1139,"38,102.51",Technical Services (Recoverable)
ECGD,ECGD,15 May 23,Legal Recoverable,LD,White & Case LLP USD,        1141,"16,409.63",Legal Services 
ECGD,ECGD,15 May 23,Legal Recoverable,LD,White & Case LLP USD,        1141,"16,409.64",Legal Services 
ECGD,ECGD,23 May 23,Non Legal Recoverable,SSD,ST Engineering Aerospace SolutionsAS,        1142,"1,061,980.95",Technical Services (Recoverable)
ECGD,ECGD,23 May 23,Non Legal Recoverable,SSD,ST Engineering Aerospace SolutionsAS,        1143,"1,061,980.95",Technical Services (Recoverable)
ECGD,ECGD,23 May 23,Non Legal Recoverable,SSD,ST Engineering Aerospace SolutionsAS,        1144,"1,061,980.95",Technical Services (Recoverable)
ECGD,ECGD,23 May 23,Non Legal Recoverable,SSD,ST Engineering Aerospace SolutionsAS,        1145,"1,061,980.95",Technical Services (Recoverable)
ECGD,ECGD,24 May 23,Non Legal Recoverable,SSD,Rohr Aero Services Ltd,        1148,"4,676,756.24",Technical Services (Recoverable)
ECGD,ECGD,5 May 23,Agency - Interim Managers,HRD,Alexander Mann Solutions,       83952,"1,837.65",Interim Staff 
ECGD,ECGD,5 May 23,Agency - Interim Managers,HRD,Alexander Mann Solutions,       83952,"2,258.44",Interim Staff 
ECGD,ECGD,5 May 23,Agency - Interim Managers,HRD,Alexander Mann Solutions,       83952,"2,874.32",Interim Staff 
ECGD,ECGD,5 May 23,Agency - Interim Managers,HRD,Alexander Mann Solutions,       83952,"2,887.75",Interim Staff 
ECGD,ECGD,5 May 23,Agency - Interim Managers,HRD,Alexander Mann Solutions,       83952,"3,464.60",Interim Staff 
ECGD,ECGD,5 May 23,Agency - Specialist Contractors,HRD,Alexander Mann Solutions,       83952,303.69,Interim Staff 
ECGD,ECGD,5 May 23,Agency - Specialist Contractors,HRD,Alexander Mann Solutions,       83952,"1,026.54",Interim Staff 
ECGD,ECGD,5 May 23,Agency - Specialist Contractors,HRD,Alexander Mann Solutions,       83952,"2,053.08",Interim Staff 
ECGD,ECGD,5 May 23,Agency - Specialist Contractors,HRD,Alexander Mann Solutions,       83952,"2,438.05",Interim Staff 
ECGD,ECGD,5 May 23,Agency - Specialist Contractors,HRD,Alexander Mann Solutions,       83952,"2,463.72",Interim Staff 
ECGD,ECGD,5 May 23,Agency - Specialist Contractors,HRD,Alexander Mann Solutions,       83952,"3,040.95",Interim Staff 
ECGD,ECGD,5 May 23,Agency - Specialist Contractors,HRD,Alexander Mann Solutions,       83952,"3,079.65",Interim Staff 
ECGD,ECGD,5 May 23,Agency - Specialist Contractors,HRD,Alexander Mann Solutions,       83952,"3,079.65",Interim Staff 
ECGD,ECGD,5 May 23,Agency - Specialist Contractors,HRD,Alexander Mann Solutions,       83952,"3,150.30",Interim Staff 
ECGD,ECGD,5 May 23,Agency - Specialist Contractors,HRD,Alexander Mann Solutions,       83952,"3,490.25",Interim Staff 
ECGD,ECGD,5 May 23,Agency - Temporary Staff,HRD,Alexander Mann Solutions,       83952,458.72,Interim Staff 
ECGD,ECGD,5 May 23,Agency - Temporary Staff,HRD,Alexander Mann Solutions,       83952,572.17,Interim Staff 
ECGD,ECGD,5 May 23,Agency - Temporary Staff,HRD,Alexander Mann Solutions,       83952,606.70,Interim Staff 
ECGD,ECGD,5 May 23,Agency - Temporary Staff,HRD,Alexander Mann Solutions,       83952,702.30,Interim Staff 
ECGD,ECGD,5 May 23,Agency - Temporary Staff,HRD,Alexander Mann Solutions,       83952,710.28,Interim Staff 
ECGD,ECGD,4 May 23,Overseas Export Managers,OCCMC,Foreign & Commonwealth Office,       83961,"66,077.46",Overseas staff
ECGD,ECGD,5 May 23,Project Agency - Specialist Cont,Change Board,Nomensa Ltd,       83980,"65,250.00",Project Contractors
ECGD,ECGD,5 May 23,Project Agency - Specialist Cont,Change Board,Nomensa Ltd,       83981,"49,000.00",Project Contractors
ECGD,ECGD,9 May 23,Project Consultancy Costs,Change Board,Nomensa Ltd,       83984,"45,300.00",Project Contractors
ECGD,ECGD,9 May 23,Agency - Interim Managers,HRD,Alexander Mann Solutions,       83986,"1,653.89",Interim Staff 
ECGD,ECGD,9 May 23,Agency - Interim Managers,HRD,Alexander Mann Solutions,       83986,"2,258.44",Interim Staff 
ECGD,ECGD,9 May 23,Agency - Interim Managers,HRD,Alexander Mann Solutions,       83986,"2,494.00",Interim Staff 
ECGD,ECGD,9 May 23,Agency - Interim Managers,HRD,Alexander Mann Solutions,       83986,"2,494.00",Interim Staff 
ECGD,ECGD,9 May 23,Agency - Interim Managers,HRD,Alexander Mann Solutions,       83986,"2,771.68",Interim Staff 
ECGD,ECGD,9 May 23,Agency - Interim Managers,HRD,Alexander Mann Solutions,       83986,"2,887.75",Interim Staff 
ECGD,ECGD,9 May 23,Agency - Interim Managers,HRD,Alexander Mann Solutions,       83986,"3,592.90",Interim Staff 
ECGD,ECGD,9 May 23,Agency - Specialist Contractors,HRD,Alexander Mann Solutions,       83986,12.04,Interim Staff 
ECGD,ECGD,9 May 23,Agency - Specialist Contractors,HRD,Alexander Mann Solutions,       83986,57.50,Interim Staff 
ECGD,ECGD,9 May 23,Agency - Specialist Contractors,HRD,Alexander Mann Solutions,       83986,260.38,Interim Staff 
ECGD,ECGD,9 May 23,Agency - Specialist Contractors,HRD,Alexander Mann Solutions,       83986,735.07,Interim Staff 
ECGD,ECGD,9 May 23,Agency - Specialist Contractors,HRD,Alexander Mann Solutions,       83986,"2,053.08",Interim Staff 
ECGD,ECGD,9 May 23,Agency - Specialist Contractors,HRD,Alexander Mann Solutions,       83986,"2,438.05",Interim Staff 
ECGD,ECGD,9 May 23,Agency - Specialist Contractors,HRD,Alexander Mann Solutions,       83986,"2,463.72",Interim Staff 
ECGD,ECGD,9 May 23,Agency - Specialist Contractors,HRD,Alexander Mann Solutions,       83986,"3,040.95",Interim Staff 
ECGD,ECGD,9 May 23,Agency - Specialist Contractors,HRD,Alexander Mann Solutions,       83986,"3,079.65",Interim Staff 
ECGD,ECGD,9 May 23,Agency - Specialist Contractors,HRD,Alexander Mann Solutions,       83986,"3,079.65",Interim Staff 
ECGD,ECGD,9 May 23,Agency - Specialist Contractors,HRD,Alexander Mann Solutions,       83986,"3,079.65",Interim Staff 
ECGD,ECGD,9 May 23,Agency - Specialist Contractors,HRD,Alexander Mann Solutions,       83986,"3,079.65",Interim Staff 
ECGD,ECGD,9 May 23,Agency - Specialist Contractors,HRD,Alexander Mann Solutions,       83986,"3,097.80",Interim Staff 
ECGD,ECGD,9 May 23,Agency - Specialist Contractors,HRD,Alexander Mann Solutions,       83986,"3,097.80",Interim Staff 
ECGD,ECGD,9 May 23,Agency - Specialist Contractors,HRD,Alexander Mann Solutions,       83986,"3,150.30",Interim Staff 
ECGD,ECGD,9 May 23,Agency - Specialist Contractors,HRD,Alexander Mann Solutions,       83986,"3,336.30",Interim Staff 
ECGD,ECGD,9 May 23,Agency - Specialist Contractors,HRD,Alexander Mann Solutions,       83986,"3,336.30",Interim Staff 
ECGD,ECGD,9 May 23,Agency - Specialist Contractors,HRD,Alexander Mann Solutions,       83986,"3,412.80",Interim Staff 
ECGD,ECGD,9 May 23,Agency - Specialist Contractors,HRD,Alexander Mann Solutions,       83986,"3,412.80",Interim Staff 
ECGD,ECGD,9 May 23,Agency - Specialist Contractors,HRD,Alexander Mann Solutions,       83986,"3,490.25",Interim Staff 
ECGD,ECGD,9 May 23,Agency - Specialist Contractors,HRD,Alexander Mann Solutions,       83986,"3,675.35",Interim Staff 
ECGD,ECGD,9 May 23,Agency - Specialist Contractors,HRD,Alexander Mann Solutions,       83986,"3,695.58",Interim Staff 
ECGD,ECGD,9 May 23,Agency - Specialist Contractors,HRD,Alexander Mann Solutions,       83986,"4,106.20",Interim Staff 
ECGD,ECGD,9 May 23,Agency - Temporary Staff,HRD,Alexander Mann Solutions,       83986,710.28,Interim Staff 
ECGD,ECGD,9 May 23,Agency - Temporary Staff,HRD,Alexander Mann Solutions,       83986,866.17,Interim Staff 
ECGD,ECGD,15 May 23,Consultancy,Digital and Data Division,Nomensa Ltd,       83993,"42,950.00",Digital costs 
ECGD,ECGD,15 May 23,IT Software Licensing & Subscription,ID,Softwire Technology Limited,       83994,"23,000.00",IT Systems 
ECGD,ECGD,12 May 23,IT Software Licensing & Subscription,ID,Bytes Software Services Ltd,       83998,"50,761.80",IT Systems 
ECGD,ECGD,15 May 23,Agency - Interim Managers,HRD,Alexander Mann Solutions,       84001,"1,470.12",Interim Staff 
ECGD,ECGD,15 May 23,Agency - Interim Managers,HRD,Alexander Mann Solutions,       84001,"1,693.83",Interim Staff 
ECGD,ECGD,15 May 23,Agency - Interim Managers,HRD,Alexander Mann Solutions,       84001,"1,995.20",Interim Staff 
ECGD,ECGD,15 May 23,Agency - Interim Managers,HRD,Alexander Mann Solutions,       84001,"2,078.76",Interim Staff 
ECGD,ECGD,15 May 23,Agency - Interim Managers,HRD,Alexander Mann Solutions,       84001,"2,310.20",Interim Staff 
ECGD,ECGD,15 May 23,Agency - Interim Managers,HRD,Alexander Mann Solutions,       84001,"2,515.03",Interim Staff 
ECGD,ECGD,15 May 23,Agency - Specialist Contractors,HRD,Alexander Mann Solutions,       84001,"1,539.81",Interim Staff 
ECGD,ECGD,15 May 23,Agency - Specialist Contractors,HRD,Alexander Mann Solutions,       84001,"1,950.44",Interim Staff 
ECGD,ECGD,15 May 23,Agency - Specialist Contractors,HRD,Alexander Mann Solutions,       84001,"2,432.76",Interim Staff 
ECGD,ECGD,15 May 23,Agency - Specialist Contractors,HRD,Alexander Mann Solutions,       84001,"2,463.72",Interim Staff 
ECGD,ECGD,15 May 23,Agency - Specialist Contractors,HRD,Alexander Mann Solutions,       84001,"2,463.72",Interim Staff 
ECGD,ECGD,15 May 23,Agency - Specialist Contractors,HRD,Alexander Mann Solutions,       84001,"2,478.24",Interim Staff 
ECGD,ECGD,15 May 23,Agency - Specialist Contractors,HRD,Alexander Mann Solutions,       84001,"2,520.24",Interim Staff 
ECGD,ECGD,15 May 23,Agency - Specialist Contractors,HRD,Alexander Mann Solutions,       84001,"2,669.04",Interim Staff 
ECGD,ECGD,15 May 23,Agency - Specialist Contractors,HRD,Alexander Mann Solutions,       84001,"2,730.24",Interim Staff 
ECGD,ECGD,15 May 23,Agency - Specialist Contractors,HRD,Alexander Mann Solutions,       84001,"2,940.28",Interim Staff 
ECGD,ECGD,15 May 23,Agency - Specialist Contractors,HRD,Alexander Mann Solutions,       84001,"3,079.65",Interim Staff 
ECGD,ECGD,15 May 23,Agency - Specialist Contractors,HRD,Alexander Mann Solutions,       84001,"3,079.65",Interim Staff 
ECGD,ECGD,15 May 23,Agency - Temporary Staff,HRD,Alexander Mann Solutions,       84001,542.58,Interim Staff 
ECGD,ECGD,15 May 23,Agency - Temporary Staff,HRD,Alexander Mann Solutions,       84001,702.30,Interim Staff 
ECGD,ECGD,15 May 23,Agency - Temporary Staff,HRD,Alexander Mann Solutions,       84001,710.28,Interim Staff 
ECGD,ECGD,18 May 23,Marketing,OCCMC,Manning Gottlieb OMD,       84010,"65,665.74",Marketing and Communications 
ECGD,ECGD,23 May 23,Agency - Interim Managers,HRD,Alexander Mann Solutions,       84039,"1,575.15",Interim Staff 
ECGD,ECGD,23 May 23,Agency - Interim Managers,HRD,Alexander Mann Solutions,       84039,"1,995.20",Interim Staff 
ECGD,ECGD,23 May 23,Agency - Interim Managers,HRD,Alexander Mann Solutions,       84039,"2,100.20",Interim Staff 
ECGD,ECGD,23 May 23,Agency - Interim Managers,HRD,Alexander Mann Solutions,       84039,"2,258.44",Interim Staff 
ECGD,ECGD,23 May 23,Agency - Interim Managers,HRD,Alexander Mann Solutions,       84039,"2,310.20",Interim Staff 
ECGD,ECGD,23 May 23,Agency - Interim Managers,HRD,Alexander Mann Solutions,       84039,"2,771.68",Interim Staff 
ECGD,ECGD,23 May 23,Agency - Interim Managers,HRD,Alexander Mann Solutions,       84039,"2,874.32",Interim Staff 
ECGD,ECGD,23 May 23,Agency - Specialist Contractors,HRD,Alexander Mann Solutions,       84039,975.22,Interim Staff 
ECGD,ECGD,23 May 23,Agency - Specialist Contractors,HRD,Alexander Mann Solutions,       84039,"1,231.86",Interim Staff 
ECGD,ECGD,23 May 23,Agency - Specialist Contractors,HRD,Alexander Mann Solutions,       84039,"1,500.16",Interim Staff 
ECGD,ECGD,23 May 23,Agency - Specialist Contractors,HRD,Alexander Mann Solutions,       84039,"2,053.08",Interim Staff 
ECGD,ECGD,23 May 23,Agency - Specialist Contractors,HRD,Alexander Mann Solutions,       84039,"2,463.72",Interim Staff 
ECGD,ECGD,23 May 23,Agency - Specialist Contractors,HRD,Alexander Mann Solutions,       84039,"2,463.72",Interim Staff 
ECGD,ECGD,23 May 23,Agency - Specialist Contractors,HRD,Alexander Mann Solutions,       84039,"2,478.24",Interim Staff 
ECGD,ECGD,23 May 23,Agency - Specialist Contractors,HRD,Alexander Mann Solutions,       84039,"2,520.24",Interim Staff 
ECGD,ECGD,23 May 23,Agency - Specialist Contractors,HRD,Alexander Mann Solutions,       84039,"2,703.34",Interim Staff 
ECGD,ECGD,23 May 23,Agency - Specialist Contractors,HRD,Alexander Mann Solutions,       84039,"2,730.24",Interim Staff 
ECGD,ECGD,23 May 23,Agency - Specialist Contractors,HRD,Alexander Mann Solutions,       84039,"2,792.20",Interim Staff 
ECGD,ECGD,23 May 23,Agency - Specialist Contractors,HRD,Alexander Mann Solutions,       84039,"2,792.20",Interim Staff 
ECGD,ECGD,23 May 23,Agency - Specialist Contractors,HRD,Alexander Mann Solutions,       84039,"2,940.28",Interim Staff 
ECGD,ECGD,23 May 23,Agency - Specialist Contractors,HRD,Alexander Mann Solutions,       84039,"3,079.65",Interim Staff 
ECGD,ECGD,23 May 23,Agency - Specialist Contractors,HRD,Alexander Mann Solutions,       84039,"3,079.65",Interim Staff 
ECGD,ECGD,23 May 23,Agency - Specialist Contractors,HRD,Alexander Mann Solutions,       84039,"3,079.65",Interim Staff 
ECGD,ECGD,23 May 23,Agency - Specialist Contractors,HRD,Alexander Mann Solutions,       84039,"4,106.20",Interim Staff 
ECGD,ECGD,23 May 23,Agency - Specialist Contractors,HRD,Alexander Mann Solutions,       84039,"4,865.53",Interim Staff 
ECGD,ECGD,23 May 23,Agency - Temporary Staff,HRD,Alexander Mann Solutions,       84039,508.05,Interim Staff 
ECGD,ECGD,23 May 23,Agency - Temporary Staff,HRD,Alexander Mann Solutions,       84039,710.28,Interim Staff 
ECGD,ECGD,23 May 23,Agency - Temporary Staff,HRD,Alexander Mann Solutions,       84039,866.17,Interim Staff 
ECGD,ECGD,23 May 23,Consultancy,Compliance,Aperio Intelligence Limited,       84041,"95,000.00",Consultancy
ECGD,ECGD,23 May 23,IT Software Licensing & Subscription,ID,Halo Service Solutions Ltd,       84042,"49,000.00",IT Systems 
ECGD,ECGD,30 May 23,IT Software Licensing & Subscription,ID,Fidelity National Info Services,       84054,"23,106.50",IT Systems 
ECGD,ECGD,30 May 23,IT Software Licensing & Subscription,ID,Fidelity National Info Services,       84054,"73,940.79",IT Systems 
ECGD,ECGD,30 May 23,Marketing,OCCMC,Manning Gottlieb OMD,       84058,"183,442.01",Marketing and Communications 
ECGD,ECGD,30 May 23,Marketing,OCCMC,Manning Gottlieb OMD,       84059,"151,498.48",Marketing and Communications 
ECGD,ECGD,30 May 23,Shared Services Costs,HRD,Department for International Trade,84061,"35,237.50",Share Service Cost
ECGD,ECGD,30 May 23,Overseas Export Managers,OCCMC,Foreign & Commonwealth Office,       84062,"45,464.80",Overseas staff
ECGD,ECGD,30 May 23,Overseas Export Managers,OCCMC,Foreign & Commonwealth Office,       84063,"68,160.55",Overseas staff
ECGD,ECGD,30 May 23,1HGR Rent and Charges,HRD,Government Property Agency,       84065,"1,320.82",Buiding Cost 
ECGD,ECGD,30 May 23,1HGR Rent and Charges,HRD,Government Property Agency,       84065,"2,393.52",Buiding Cost 
ECGD,ECGD,30 May 23,1HGR Rent and Charges,HRD,Government Property Agency,       84065,"3,143.75",Buiding Cost 
ECGD,ECGD,30 May 23,1HGR Rent and Charges,HRD,Government Property Agency,       84065,"6,281.50",Buiding Cost 
ECGD,ECGD,30 May 23,1HGR Rent and Charges,HRD,Government Property Agency,       84065,"6,817.08",Buiding Cost 
ECGD,ECGD,30 May 23,1HGR Rent and Charges,HRD,Government Property Agency,       84065,"95,223.50",Buiding Cost 
ECGD,ECGD,30 May 23,1HGR Rent and Charges,HRD,Government Property Agency,       84065,"196,594.25",Buiding Cost 
ECGD,ECGD,30 May 23,1HGR Rent and Charges,HRD,Government Property Agency,       84065,"393,368.64",Buiding Cost 
ECGD,ECGD,30 May 23,Agency - Interim Managers,HRD,Alexander Mann Solutions,       84067,"1,102.59",Interim Staff 
ECGD,ECGD,30 May 23,Agency - Interim Managers,HRD,Alexander Mann Solutions,       84067,"2,494.00",Interim Staff 
ECGD,ECGD,30 May 23,Agency - Interim Managers,HRD,Alexander Mann Solutions,       84067,"2,625.25",Interim Staff 
ECGD,ECGD,30 May 23,Agency - Interim Managers,HRD,Alexander Mann Solutions,       84067,"2,823.05",Interim Staff 
ECGD,ECGD,30 May 23,Agency - Interim Managers,HRD,Alexander Mann Solutions,       84067,"2,887.75",Interim Staff 
ECGD,ECGD,30 May 23,Agency - Interim Managers,HRD,Alexander Mann Solutions,       84067,"3,118.14",Interim Staff 
ECGD,ECGD,30 May 23,Agency - Interim Managers,HRD,Alexander Mann Solutions,       84067,"3,592.90",Interim Staff 
ECGD,ECGD,30 May 23,Agency - Specialist Contractors,HRD,Alexander Mann Solutions,       84067,"1,334.52",Interim Staff 
ECGD,ECGD,30 May 23,Agency - Specialist Contractors,HRD,Alexander Mann Solutions,       84067,"2,053.08",Interim Staff 
ECGD,ECGD,30 May 23,Agency - Specialist Contractors,HRD,Alexander Mann Solutions,       84067,"2,438.05",Interim Staff 
ECGD,ECGD,30 May 23,Agency - Specialist Contractors,HRD,Alexander Mann Solutions,       84067,"2,463.72",Interim Staff 
ECGD,ECGD,30 May 23,Agency - Specialist Contractors,HRD,Alexander Mann Solutions,       84067,"3,079.65",Interim Staff 
ECGD,ECGD,30 May 23,Agency - Specialist Contractors,HRD,Alexander Mann Solutions,       84067,"3,079.65",Interim Staff 
ECGD,ECGD,30 May 23,Agency - Specialist Contractors,HRD,Alexander Mann Solutions,       84067,"3,079.65",Interim Staff 
ECGD,ECGD,30 May 23,Agency - Specialist Contractors,HRD,Alexander Mann Solutions,       84067,"3,097.80",Interim Staff 
ECGD,ECGD,30 May 23,Agency - Specialist Contractors,HRD,Alexander Mann Solutions,       84067,"3,150.30",Interim Staff 
ECGD,ECGD,30 May 23,Agency - Specialist Contractors,HRD,Alexander Mann Solutions,       84067,"3,336.30",Interim Staff 
ECGD,ECGD,30 May 23,Agency - Specialist Contractors,HRD,Alexander Mann Solutions,       84067,"3,412.80",Interim Staff 
ECGD,ECGD,30 May 23,Agency - Specialist Contractors,HRD,Alexander Mann Solutions,       84067,"3,490.25",Interim Staff 
ECGD,ECGD,30 May 23,Agency - Specialist Contractors,HRD,Alexander Mann Solutions,       84067,"3,675.35",Interim Staff 
ECGD,ECGD,30 May 23,Agency - Temporary Staff,HRD,Alexander Mann Solutions,       84067,557.37,Interim Staff 
ECGD,ECGD,30 May 23,Agency - Temporary Staff,HRD,Alexander Mann Solutions,       84067,710.28,Interim Staff 
ECGD,ECGD,30 May 23,Agency - Temporary Staff,HRD,Alexander Mann Solutions,       84067,866.17,Interim Staff 
ECGD,ECGD,31 May 23,Overseas Export Managers,OCCMC,Foreign & Commonwealth Office,       84072,"76,509.54",Overseas staff
ECGD,ECGD,31 May 23,Marketing,OCCMC,Department for International Trade,       84075,"36,880.07",Marketing and Communications 
